Workbook

Sheet Cover Sheet
M2: 1K/2K Series
M3: 3K/4K Series
C4: PROCESS CONTROL PLAN AUDIT (AT-1927-16) | M4: 5K/6K Series
M5: 8K/9K Series
M6: EP 40/50 Series
B7: SUPPLIER NAME | G7: SUPPLIER PHONE | M7: H3000 (Archive)
M8: TC10 (Obsolete)
B9: ATI VENDOR NO | G9: SUPPLIER LOCATION | M9: X200/X1100
M10: CST
M11: FracTran
B12: AUDITOR 1 | H12: AUDITOR PHONE | M12: 3040MX
M13: VAS
B14: AUDITOR EMAIL | H14: AUDIT DATE | M14: 100/130 S/D
M15: Service
M16: Other (specify below)
B17: AUDITOR 2 | H17: AUDITOR PHONE
B19: AUDITOR EMAIL | H19: AUDIT DATE
B22: PART NUMBER(S) | G22: PART NAME
N23: d
B24: ENG CHG LEVEL | G24: PRODUCT LINE
B27: TYPE OF AUDIT | C27: (check one) | F27: (check one)
B30: STATUS | F30: =IF(G51="G","NO FOLLOW-UP DATE REQUIRED",IF(G51="R","PLEASE PROVIDE FOLLOW-UP DATE",IF(G51="Y","NO FOLLOW-UP DATE REQUIRED",IF(G51="NR/NA","FOLLOW-UP DATE")))) -> PLEASE PROVIDE FOLLOW-UP DATE | G30: =IF(E51="G", "NO FOLLOW-UP DATE REQUIRED","PLEASE PROVIDE FOLLOW-UP DATE") -> PLEASE PROVIDE FOLLOW-UP DATE | H30: =IF(F51="G", "NO FOLLOW-UP DATE REQUIRED","PLEASE PROVIDE FOLLOW-UP DATE") -> PLEASE PROVIDE FOLLOW-UP DATE
B33: AUDIT SUMMARY
B35: ELEMENTS | E35: POTENTIAL SCORE | F35: AUDIT SCORE | G35: % | H35: STATUS | I35: (Auditor) Red Status Requires Corrective Action & Re-Audit Within 6 Months
B36: TECHNICAL INFORMATION | E36: =IF(G36="NR/NA","NR/NA",Audit!F9) -> 16 | F36: =(Audit!E9) -> 10 | G36: =IF(Audit!E9="NR/NA","NR/NA",Audit!E9/Audit!F9) -> 0.625 | H36: =IF(MIN(Audit!J5:J8)=5,"NR/NA",IF(MIN(Audit!J5:J8)=4,"G",IF(MIN(Audit!J5:J8)=3,"Y",IF(MIN(Audit!J5:J8)=2,"R",IF(MIN(Audit!J5:J8)=1,"R",IF(MIN(Audit!J5:J8)=0,"R")))))) -> R | I36: Number of items requiring corrective action: | J36: =Audit!C9 -> 2 | K36: =IF(H36="NR/NA",4,IF(H36="G",3,IF(H36="Y",2,IF(H36="R",1)))) -> 1
B37: CHANGE CONTROL | E37: =IF(G37="NR/NA","NR/NA",Audit!F15) -> 16 | F37: =(Audit!E15) -> 10 | G37: =IF(Audit!E15="NR/NA","NR/NA",Audit!E15/Audit!F15) -> 0.625 | H37: =IF(MIN(Audit!J11:J14)=5,"NR/NA",IF(MIN(Audit!J11:J14)=4,"G",IF(MIN(Audit!J11:J14)=3,"Y",IF(MIN(Audit!J11:J14)=2,"R",IF(MIN(Audit!J11:J14)=1,"R",IF(MIN(Audit!J11:J14)=0,"R")))))) -> R | I37: Number of items requiring corrective action: | J37: =Audit!C15 -> 2 | K37: =IF(H37="NR/NA",4,IF(H37="G",3,IF(H37="Y",2,IF(H37="R",1)))) -> 1
B38: PROCESS FLOW DIAGRAM | E38: =IF(G38="NR/NA","NR/NA",Audit!F23) -> 24 | F38: =(Audit!E23) -> 13 | G38: =IF(Audit!E23="NR/NA","NR/NA",Audit!E23/Audit!F23) -> 0.5416666667 | H38: =IF(MIN(Audit!J17:J22)=5,"NR/NA",IF(MIN(Audit!J17:J22)=4,"G",IF(MIN(Audit!J17:J22)=3,"Y",IF(MIN(Audit!J17:J22)=2,"R",IF(MIN(Audit!J17:J22)=1,"R",IF(MIN(Audit!J17:J22)=0,"R")))))) -> R | I38: Number of items requiring corrective action: | J38: =Audit!C23 -> 4 | K38: 1
B39: PFMEA / PCP | E39: =IF(G39="NR/NA","NR/NA",Audit!F36) -> 44 | F39: =(Audit!E36) -> 26 | G39: =IF(Audit!E36="NR/NA","NR/NA",Audit!E36/Audit!F36) -> 0.5909090909 | H39: =IF(MIN(Audit!J25:J35)=5,"NR/NA",IF(MIN(Audit!J25:J35)=4,"G",IF(MIN(Audit!J25:J35)=3,"Y",IF(MIN(Audit!J25:J35)=2,"R",IF(MIN(Audit!J25:J35)=1,"R",IF(MIN(Audit!J25:J35)=0,"R")))))) -> R | I39: Number of items requiring corrective action: | J39: =Audit!C36 -> 6 | K39: 1
B40: STANDARDIZED OPERATIONS & TRAINING | E40: =IF(G40="NR/NA","NR/NA",Audit!F45) -> 28 | F40: =(Audit!E45) -> 16 | G40: =IF(Audit!E45="NR/NA","NR/NA",Audit!E45/Audit!F45) -> 0.5714285714 | H40: =IF(MIN(Audit!J38:J44)=5,"NR/NA",IF(MIN(Audit!J38:J44)=4,"G",IF(MIN(Audit!J38:J44)=3,"Y",IF(MIN(Audit!J38:J44)=2,"R",IF(MIN(Audit!J38:J44)=1,"R",IF(MIN(Audit!J38:J44)=0,"R")))))) -> R | I40: Number of items requiring corrective action: | J40: =Audit!C45 -> 4 | K40: 1
B41: GAGING | E41: =IF(G41="NR/NA","NR/NA",Audit!F56) -> 36 | F41: =(Audit!E56) -> 21 | G41: =IF(Audit!E56="NR/NA","NR/NA",Audit!E56/Audit!F56) -> 0.5833333333 | H41: =IF(MIN(Audit!J47:J55)=5,"NR/NA",IF(MIN(Audit!J47:J55)=4,"G",IF(MIN(Audit!J47:J55)=3,"Y",IF(MIN(Audit!J47:J55)=2,"R",IF(MIN(Audit!J47:J55)=1,"R",IF(MIN(Audit!J47:J55)=0,"R")))))) -> R | I41: Number of items requiring corrective action: | J41: =Audit!C56 -> 5 | K41: 1
B42: PROCESS CONTROLS | E42: =IF(G42="NR/NA","NR/NA",Audit!F69) -> 44 | F42: =(Audit!E69) -> 26 | G42: =IF(Audit!E69="NR/NA","NR/NA",Audit!E69/Audit!F69) -> 0.5909090909 | H42: =IF(MIN(Audit!J58:J68)=5,"NR/NA",IF(MIN(Audit!J58:J68)=4,"G",IF(MIN(Audit!J58:J68)=3,"Y",IF(MIN(Audit!J58:J68)=2,"R",IF(MIN(Audit!J58:J68)=1,"R",IF(MIN(Audit!J58:J68)=0,"R")))))) -> R | I42: Number of items requiring corrective action: | J42: =Audit!C69 -> 6 | K42: 1
B43: MANAGEMENT PARTICIPATION | E43: =IF(G43="NR/NA","NR/NA",Audit!F86) -> 60 | F43: =(Audit!E86) -> 33 | G43: =IF(Audit!E86="NR/NA","NR/NA",Audit!E86/Audit!F86) -> 0.55 | H43: =IF(MIN(Audit!J71:J83)=5,"NR/NA",IF(MIN(Audit!J71:J83)=4,"G",IF(MIN(Audit!J71:J83)=3,"Y",IF(MIN(Audit!J71:J83)=2,"R",IF(MIN(Audit!J71:J83)=1,"R",IF(MIN(Audit!J71:J83)=0,"R")))))) -> R | I43: Number of items requiring corrective action: | J43: =Audit!C86 -> 7 | K43: 1
B44: CONTAMINATION CONTROL | E44: =IF(G44="NR/NA","NR/NA",Audit!F97) -> 36 | F44: =(Audit!E97) -> 21 | G44: =IF(Audit!E97="NR/NA","NR/NA",Audit!E97/Audit!F97) -> 0.5833333333 | H44: =IF(MIN(Audit!J88:J96)=5,"NR/NA",IF(MIN(Audit!J88:J96)=4,"G",IF(MIN(Audit!J88:J96)=3,"Y",IF(MIN(Audit!J88:J96)=2,"R",IF(MIN(Audit!J88:J96)=1,"R",IF(MIN(Audit!J88:J96)=0,"R")))))) -> R | I44: Number of items requiring corrective action: | J44: =Audit!C97 -> 5 | K44: 1
B45: LABELING | E45: =IF(G45="NR/NA","NR/NA",Audit!F107) -> 32 | F45: =(Audit!E107) -> 20 | G45: =IF(Audit!E107="NR/NA","NR/NA",Audit!E107/Audit!F107) -> 0.625 | H45: =IF(MIN(Audit!J99:J106)=5,"NR/NA",IF(MIN(Audit!J99:J106)=4,"G",IF(MIN(Audit!J99:J106)=3,"Y",IF(MIN(Audit!J99:J106)=2,"R",IF(MIN(Audit!J99:J106)=1,"R",IF(MIN(Audit!J99:J106)=0,"R")))))) -> R | I45: Number of items requiring corrective action: | J45: =Audit!C107 -> 4 | K45: 1
B46: LEAK TESTING | E46: =IF(G46="NR/NA","NR/NA",Audit!F116) -> 28 | F46: =(Audit!E116) -> 16 | G46: =IF(Audit!E116="NR/NA","NR/NA",Audit!E116/Audit!F116) -> 0.5714285714 | H46: =IF(MIN(Audit!J109:J115)=5,"NR/NA",IF(MIN(Audit!J109:J115)=4,"G",IF(MIN(Audit!J109:J115)=3,"Y",IF(MIN(Audit!J109:J115)=2,"R",IF(MIN(Audit!J109:J115)=1,"R",IF(MIN(Audit!J109:J115)=0,"R")))))) -> R | I46: Number of items requiring corrective action: | J46: =Audit!C116 -> 4 | K46: 1
B47: HEAT TREATING | E47: =IF(G47="NR/NA","NR/NA",Audit!F130) -> 48 | F47: =Audit!E130 -> 30 | G47: =IF(Audit!E130="NR/NA","NR/NA",Audit!E130/Audit!F130) -> 0.625 | H47: =IF(MIN(Audit!J118:J129)=5,"NR/NA",IF(MIN(Audit!J118:J129)=4,"G",IF(MIN(Audit!J118:J129)=3,"Y",IF(MIN(Audit!J118:J129)=2,"R",IF(MIN(Audit!J118:J129)=1,"R",IF(MIN(Audit!J118:J129)=0,"R")))))) -> R | I47: Number of items requiring corrective action: | J47: =Audit!C130 -> 6 | K47: 1
B48: DISTRIBUTOR / WAREHOUSE | E48: =IF(G48="NR/NA","NR/NA",Audit!F149) -> 68 | F48: =Audit!E149 -> 41 | G48: =IF(Audit!E149="NR/NA","NR/NA",Audit!E149/Audit!F149) -> 0.6029411765 | H48: =IF(MIN(Audit!J132:J148)=5,"NR/NA",IF(MIN(Audit!J132:J148)=4,"G",IF(MIN(Audit!J132:J148)=3,"Y",IF(MIN(Audit!J132:J148)=2,"R",IF(MIN(Audit!J132:J148)=1,"R",IF(MIN(Audit!J132:J148)=0,"R")))))) -> R | I48: Number of items requiring corrective action: | J48: =Audit!C149 -> 9 | K48: 1
B49: TOOLING AUDIT SECTION 1 | E49: =IF(G49="NR/NA","NR/NA",'Tooling Audit Form Sec1'!F10) -> 16 | F49: ='Tooling Audit Form Sec1'!E10 -> 10 | G49: =IF('Tooling Audit Form Sec1'!E10="NR/NA","NR/NA",'Tooling Audit Form Sec1'!E10/'Tooling Audit Form Sec1'!F10) -> 0.625 | H49: =IF(MIN('Tooling Audit Form Sec1'!J6:J9)=5,"NR/NA",IF(MIN('Tooling Audit Form Sec1'!J6:J9)=4,"G",IF(MIN('Tooling Audit Form Sec1'!J6:J9)=3,"Y",IF(MIN('Tooling Audit Form Sec1'!J6:J9)=2,"R",IF(MIN('Tooling Audit Form Sec1'!J6:J9)=1,"R",IF(MIN('Tooling Audit Form Sec1'!J6:J9)=0,"R")))))) -> R | I49: Number of items requiring corrective action: | J49: ='Tooling Audit Form Sec1'!C10 -> 2 | K49: 1
B50: ELEMENTS TOTAL SCORE: | E50: =SUM(E36:E49) -> 496 | F50: =SUM(F36:F49) -> 293 | G50: =IF(E50=0,"NR/NA",F50/E50) -> 0.5907258065 | H50: *Auditor Note: RED status on any question requires corrective actions. Follow-up is done on site at the auditor's discretion within 6 months.
B51: AUDIT STATUS | E51: Audit status is equal to the lowest color status of the above strategies. | G51: =IF(MIN(K36:K49)=4,"NR/NA",IF(MIN(K36:K49)=3,"G",IF(MIN(K36:K49)=2,"Y",IF(MIN(K36:K49)=1,"R")))) -> R
B53: STATUS FOR INDIVIDUAL QUESTIONS
B55: =IF(MIN(F44:F53)=3,"G", IF(MIN(F44:F53)=2, "Y","R")) -> R | C55: 0 - RED: Element is not in place and no evidence of plans to implement: Corrective Action Required
B56: =IF(MIN(F46:F54)=3,"G", IF(MIN(F46:F54)=2, "Y","R")) -> R | C56: 1 - RED: Element is not in place but a plan to implement is documented: Corrective Action Required
B57: =IF(MIN(F50:F55)=3,"G", IF(MIN(F50:F55)=2, "Y","R")) -> R | C57: 2 - RED: Element is in place but it is not being followed: Corrective Action Required
B58: Y | C58: 3 - YELLOW: Element is satisfactory, but continuous improvement should be applied
B59: G | C59: 4 - GREEN: Element is in place and it is being followed | J59: =IF('Tooling Audit Form Sec2'!S16=2,"Y","N") -> N
B60: NR/NA | C60: NR/NA - Didn't Audit / Not Applicable | I60: TOOLING AUDIT FORM SECTION 2:
C61: Note: Status and Code entered automatically from audit sheet..
I63: DOCK AUDIT COMPLETED: | J63: =IF('Dock Audit'!G1=2,"Y","N") -> N
B64: Supplier Representative Signature | F64: ATI Representative Signature
B66: Supplier Representative Signature | F66: ATI Representative Signature

Sheet Audit
B1: PROCESS CONTROL PLAN AUDIT
B3: QUESTION | C3: EVIDENCE | D3: COMMENTS | E3: SCORE | F3: R/Y/G
B4: A. TECHNICAL INFORMATION AVAILABILITY
A5: 1 | B5: Are drawings available at the production facility, and do they match the change level on the latest Allison scheduling agreement? | C5: LOOK FOR: Drawings, material spec sheets, scheduling agreement QUESTIONS TO ASK: Do you have drawings? Do you have math data? | E5: 1 | F5: =IF(E5="NR/NA","",IF(E5>3,"G",IF(E5>2,"Y","R"))) -> R | G5: =IF(E5="NR/NA",0,E5) -> 1 | H5: =IF(E5="NR/NA",5,E5) -> 1 | I5: =IF(E5="NR/NA",0,4) -> 4 | J5: =IF(E5="NR/NA",5,E5) -> 1
A6: 2 | B6: Do the scheduling agreement, ALLISON drawing, and PPAP warrant revision level match? | C6: LOOK FOR: Drawings, scheduling agreement, PPAP warrant QUESTIONS TO ASK: Does the part number revision level match on the PPAP warrant, scheduling agreement, and Allison drawing? | E6: 2 | F6: =IF(E6="NR/NA","",IF(E6>3,"G",IF(E6>2,"Y","R"))) -> R | G6: =IF(E6="NR/NA",0,E6) -> 2 | H6: =IF(E6="NR/NA",5,E6) -> 2 | I6: =IF(E6="NR/NA",0,4) -> 4 | J6: =IF(E6="NR/NA",5,E6) -> 2
A7: 3 | B7: Does the supplier retain the full PPAP documentation and part samples as required by AIAG PPAP manual? | C7: LOOK FOR: PPAP documentation, either hardcopy or on iPPAP QUESTIONS TO ASK: Do you have the required documentation retained for the PPAP package for part number #######? Do you have the master retained samples for part number ########? | E7: 3 | F7: Y | G7: 3 | H7: 3 | I7: 4 | J7: 3
A8: 4 | B8: Are all technical specifications (TIS, TES, etc.) available and do they match the current revision level on the Supplier Portal? | C8: LOOK FOR: Part Drawing/Specification Package Document F-11097 Engineering Specification Revision Listing QUESTIONS TO ASK: Verify Component Technical Specifications and Sub-System Technical Specification are available for review. | E8: 4 | F8: =IF(E8="NR/NA","",IF(E8>3,"G",IF(E8>2,"Y","R"))) -> G | G8: 4 | H8: 4 | I8: 4 | J8: 4
B9: # Corrective Action Required = | C9: =IF(E9="NR/NA","NR/NA",COUNTIF(F5:F8,"R")) -> 2 | D9: SCORE / POTENTIAL | E9: =IF(H9=20,"NR/NA",SUM(G5:G8)) -> 10 | F9: =I9 -> 16 | G9: =SUM(G5:G8) -> 10 | H9: =SUM(H5:H8) -> 10 | I9: =SUM(I5:I8) -> 16 | J9: =SUM(J5:J8) -> 10
B10: B. CHANGE CONTROL
A11: 5 | B11: Do the revision levels for the part agree on the scheduling agreement, PPAP warrant, process flow, PFMEA and process control plan? | C11: LOOK FOR: QUESTIONS TO ASK: | E11: 1 | F11: =IF(E11="NR/NA","",IF(E11>3,"G",IF(E11>2,"Y","R"))) -> R | G11: =IF(E11="NR/NA",0,E11) -> 1 | H11: =IF(E11="NR/NA",5,E11) -> 1 | I11: =IF(E11="NR/NA",0,4) -> 4 | J11: =IF(E11="NR/NA",5,E11) -> 1
A12: 6 | B12: Does the supplier have a change management system that includes notification to Allison of changes that could require PPAP (reference Table 3.1 in AIAG PPAP manual)? | C12: LOOK FOR: 1) Procedure for change management 2) Internal controls to make changes only after customer notification and acceptance 3) Automated system to generate internal and external notifications when changes are made. 4) Evidence of SPCEs completed for changes. 5) Evidence of proper execution of the supplier's change management system. QUESTIONS TO ASK: How do changes in your processes, inspections, materials or suppliers get managed? What is the mechanism or process that will require notification to Allison in the event of changes? | E12: 2 | F12: R | G12: =IF(E12="NR/NA",0,E12) -> 2 | H12: =IF(E12="NR/NA",5,E12) -> 2 | I12: =IF(E12="NR/NA",0,4) -> 4 | J12: =IF(E12="NR/NA",5,E12) -> 2
A13: 7 | B13: Does the supplier ensure PPAPs are conducted by their sub-tier suppliers on the lower level tiered suppliers? | C13: LOOK FOR: Supplier requirements for sub-tier management Supplier PPAP procedure QUESTIONS TO ASK: Ask to see evidence of review of PSWs for sub-tier suppliers | E13: 3 | F13: Y | G13: 3 | H13: 3 | I13: =IF(E13="NR/NA",0,4) -> 4 | J13: 3
A14: 8 | B14: Does the supplier have a system to manage new releases and changes to documents required by the quality management system (i.e. procedures, control plans, work instructions) | C14: LOOK FOR: Document control procedure Evidence of revision control on documents System or work flow for document release and modification approval/review QUESTIONS TO ASK: How do you ensure documents that are changed are reviewed and approved for accuracy? What system do you use to provide formal review and approval of new or modified documents? | E14: 4 | F14: G | G14: 4 | H14: 4 | I14: =IF(E14="NR/NA",0,4) -> 4 | J14: 4
B15: # Corrective Action Required = | C15: =IF(E15="NR/NA","NR/NA",COUNTIF(F11:F14,"R")) -> 2 | D15: SCORE / POTENTIAL | E15: =IF(H15=20,"NR/NA",SUM(G11:G14)) -> 10 | F15: =I15 -> 16 | G15: =SUM(G11:G14) -> 10 | H15: =SUM(H11:H14) -> 10 | I15: =SUM(I11:I14) -> 16 | J15: 10
B16: C. PROCESS FLOW DIAGRAM
A17: 9 | B17: Is a process flow diagram available? | C17: LOOK FOR: Process flow diagram QUESTIONS TO ASK: Is the process flow diagram linked to FMEAs, control plan, operator instructions, etc.? | E17: 1 | F17: =IF(E17="NR/NA","",IF(E17>3,"G",IF(E17>2,"Y","R"))) -> R | G17: =IF(E17="NR/NA",0,E17) -> 1 | H17: =IF(E17="NR/NA",5,E17) -> 1 | I17: =IF(E17="NR/NA",0,4) -> 4 | J17: =IF(E17="NR/NA",5,E17) -> 1
A18: 10 | B18: Does the workflow match the Process Flow Diagram and is it organized (Follow 5S)? | C18: LOOK FOR: Process flow diagram, operator instruction at workstation QUESTIONS TO ASK: Does the material flow / work station match the process flow diagram? | E18: 2 | F18: R | G18: 2 | H18: 2 | I18: 4 | J18: 2
A19: 11 | B19: Does the process flow diagram include receiving? | C19: LOOK FOR: Evidence of receiving process on process flow diagram QUESTIONS TO ASK: Verify that receiving inspection matches the process flow diagram and what is observed on the shop floor. | E19: 3 | F19: Y | G19: 3 | H19: 3 | I19: =IF(E19="NR/NA",0,4) -> 4 | J19: 3
A20: 12 | B20: Does the process flow diagram include rework? | C20: LOOK FOR: Evidence that known rework processes are identified on the process flow diagram QUESTIONS TO ASK: Ask supplier what typical rework processes are utilized? Ask supplier to show you the rework processes are documented on the process flow diagram and control plan. | E20: 4 | F20: G | G20: 4 | H20: 4 | I20: 4 | J20: 4
A21: 13 | B21: Does the process flow diagram include gauging/inspection stations? | C21: LOOK FOR: Process flow diagram QUESTIONS TO ASK: Verify that gauging/inspection matches the process flow diagram and what is observed on the shop floor. | E21: 1 | F21: R | G21: 1 | H21: 1 | I21: 4 | J21: 1
A22: 14 | B22: Does the Process Flow Diagram include shipping? | C22: LOOK FOR: Evidence the shipping process is identified on the process Flow Diagram QUESTIONS TO ASK: Ask the supplier to show you evidence of the shipping process on the process flow diagram and control plan. | E22: 2 | F22: R | G22: 2 | H22: 2 | I22: 4 | J22: 2
B23: # Corrective Action Required = | C23: =IF(E23="NR/NA","NR/NA",COUNTIF(J17:J22,"<3")) -> 4 | D23: SCORE / POTENTIAL | E23: =IF(H23=30,"NR/NA",SUM(G17:G22)) -> 13 | F23: =I23 -> 24 | G23: =SUM(G17:G22) -> 13 | H23: =SUM(H17:H22) -> 13 | I23: =SUM(I17:I22) -> 24 | J23: =SUM(J17:J22) -> 13
B24: D. PFMEA / PCP
A25: 15 | B25: Is there a PFMEA available? | C25: LOOK FOR: PFMEA for all part numbers and all operations, especially high risk such as labeling and rework. Part family PFMEAs are acceptable. QUESTIONS TO ASK: Verify team members , dates etc. of actual PFMEA. | E25: 1 | F25: =IF(E25="NR/NA","",IF(E25>3,"G",IF(E25>2,"Y","R"))) -> R | G25: 1 | H25: 1 | I25: 4 | J25: 1
A26: 16 | B26: Is there any evidence that it is kept up to date? | C26: LOOK FOR: PFMEA change log, meeting minutes, or similar history Multi-disciplinary team agenda or other evidence of RPN reduction activities Documentation that frequency and prioritization of reviews is based on customer input, process capability, process changes, AIAG guidelines, etc… QUESTIONS TO ASK: Verify that the PFMEA is updated as required & matches the control plan (Review SQN's). Verify any current failure modes are present on the PFMEA. | E26: 2 | F26: R | G26: 2 | H26: 2 | I26: 4 | J26: 2
A27: 17 | B27: Is the PFMEA acceptable: RPN number calculation is correct, rankings for severity, occurrence and detection match AIAG or Allison recommendations, process operations match the process flow diagram and include special characteristics | C27: LOOK FOR: PFMEA Changed Log, Meeting Minutes or similar history Valid RPN numbers and revision dates with some correlation to known problems (SQNs, etc…) Sample RPN numbers and ensure rankings are consistent with AIAG or Allison recommendations (i.e. visual detection = xx) QUESTIONS TO ASK: Do RPN numbers reflect latest AIAG FMEA Manual edition? | E27: 3 | F27: Y | G27: 3 | H27: 3 | I27: 4 | J27: 3
A28: 18 | B28: Are the RPN numbers consistent? | C28: LOOK FOR: PFMEA QUESTIONS TO ASK: Are consistent rankings being used based for severity, detection, & occurrence | E28: 4 | F28: G | G28: 4 | H28: 4 | I28: 4 | J28: 4
A29: 19 | B29: Is there a procedure or process for continuous improvement based on RPN /risk reduction? | C29: LOOK FOR: PFMEA procedure of continuous improvement Top RPN list, tracking charts, management review minutes Meeting minutes, worksheets, historic PFMEA's. QUESTIONS TO ASK: Does the supplier have a system to identify PFMEA line items for continuous improvement and are action plans identified? | E29: 1 | F29: R | G29: 1 | H29: 1 | I29: 4 | J29: 1
A30: 20 | B30: Is there a process control plan (PCP) available? | C30: LOOK FOR: Updated process control plan QUESTIONS TO ASK: Verify current dates, etc. of PCP document. | E30: 2 | F30: R | G30: 2 | H30: 2 | I30: 4 | J30: 2
A31: 21 | B31: Is the process control plan (PCP) acceptable? Do the operation steps match the PFMEA and process flow? Are special characteristics included? Is GP-12 defined if applicable? | C31: LOOK FOR: PCP, changed log, meeting minutes or similar history that links all documents QUESTIONS TO ASK: Verify that PFMEA is updated as required and matches the Process Control Plan. | E31: 3 | F31: Y | G31: 3 | H31: 3 | I31: 4 | J31: 3
A32: 22 | B32: Are all "Current Controls" listed on the PFMEA also detailed on the control plan? | C32: LOOK FOR: Current controls, callouts on drawing/PCP/PFMEA QUESTIONS TO ASK: Are current controls listed on the PFMEA and PCP and do they match? | E32: 4 | F32: G | G32: 4 | H32: 4 | I32: 4 | J32: 4
A33: 23 | B33: Are special characteristics called out on the PCP? | C33: LOOK FOR: Control plan, drawing QUESTIONS TO ASK: Verify special characteristics are addressed on the PCP. | E33: 1 | F33: R | G33: 1 | H33: 1 | I33: 4 | J33: 1
A34: 24 | B34: Are inspection frequencies and capability data for special characteristics acceptable? | C34: LOOK FOR: Control plan, collected data Capability studies for high volume parts run in last 3 months Capability studies for low volume parts run in last 6 months QUESTIONS TO ASK: Does special characteristics data meet the requirements of AT-1927? | E34: 2 | F34: R | G34: 2 | H34: 2 | I34: 4 | J34: 2
A35: 25 | B35: Are sample sizes and check frequencies for each operation reasonable? | C35: LOOK FOR: Control Plan QUESTIONS TO ASK: Is there a history of failures in spite of existing controls? Does internal data (scrap, rework, FTQ, etc.) suggest sample sizes and frequencies are adequate? | E35: 3 | F35: Y | G35: 3 | H35: 3 | I35: 4 | J35: 3
B36: # Corrective Action Required = | C36: =IF(E36="NR/NA","NR/NA",COUNTIF(J25:J35,"<3")) -> 6 | D36: SCORE / POTENTIAL | E36: =IF(H36=55,"NR/NA",SUM(G25:G35)) -> 26 | F36: =I36 -> 44 | G36: =SUM(G25:G35) -> 26 | H36: =SUM(H25:H35) -> 26 | I36: =SUM(I25:I35) -> 44 | J36: =SUM(J25:J35) -> 26
B37: E. STANDARDIZED OPERATIONS & TRAINING
A38: 26 | B38: Are proper operator instructions available for each operation? | C38: LOOK FOR: Operator Instructions Instructions that are located for quick and easy reference. (close to the workstation) Documentation of required PPE, availability, and use at the workstation. Work flow diagrams including walk path, standard-in-process stock, material and tools. Visuals accurately represent the workstation layout and work sequence. QUESTIONS TO ASK: Verify that operator instructions are secure and visible to the operator. Verify that instructions are to the latest engineering change level. | E38: 1 | F38: =IF(E38="NR/NA","",IF(E38>3,"G",IF(E38>2,"Y","R"))) -> R | G38: 1 | H38: 1 | I38: 4 | J38: 1
A39: 27 | B39: Are Standardized Work instructions detailed enough to run the job properly, including handling of non-conforming parts? | C39: LOOK FOR: Operator Instructions QUESTIONS TO ASK: Verify that operations are being performed as indicated per defined instructions (cycle time, handling of non-conforming material, etc.). Do visuals accurately represent the work station layout and work sequence? | E39: 2 | F39: R | G39: 2 | H39: 2 | I39: 4 | J39: 2
A40: 28 | B40: Is the Standardized Work being followed? | C40: LOOK FOR: Standardized Worksheets QUESTIONS TO ASK: Are Layered Audits being performed? | E40: 3 | F40: Y | G40: 3 | H40: 3 | I40: 4 | J40: 3
A41: 29 | B41: Do the operators understand the instructions? | C41: LOOK FOR: Operator Instructions Compare instructions to actual work performed by operator OBSERVE 3 full cycles of the job in station: Verify: That the Major Steps (WHAT), Key Points (HOW), and Reason (WHY) are followed Quality checks are included. Specific tool requirements are listed at the operation. Verify critical items such as torque or Customer Safety requirements are specified in the document. BEST PRACTICE: Major Steps (WHAT), Key Points (HOW), and Reason (WHY) are properly explained. QUESTIONS TO ASK: Ask Team Member what or how the Standardized Work Instructions are used. Ask the Team Member how they know they have made good part. Ask the Team Member to demonstrate use of the gages and the handling of conforming and non-conforming parts. | E41: 4 | F41: G | G41: 4 | H41: 4 | I41: 4 | J41: 4
A42: 30 | B42: Have the operators been properly trained? | C42: LOOK FOR: Evidence that operators are trained in the use of Standardized Work Instructions Training Records Layered Audit Checklists QUESTIONS TO ASK: Certification Training Record or Plan. BEST PRACTICE: - Chart showing cross training/certification level in a cell such as a flexibility chart. - Look for a job rotation plan or log. How often does team rotate? - The number of Team Members certified per station should support the Job Rotation Plan. - If it does not, look for a plan such as a Flexibility Chart 2x2 or 4x4 matrix, that shows the status, actual vs. planned number certified per station that is being used to maintain job rotation. | E42: 1 | F42: R | G42: 1 | H42: 1 | I42: 4 | J42: 1
A43: 31 | B43: Are instructions for handling Work In Process (WIP) and final product followed throughout the process including repair/rework areas and packaging/shipping? | C43: LOOK FOR: WIP Instructions, Final Shipping Instructions Are operators using prescribed in-process containers, storage locations, material handling (i.e. lint-free gloves. QUESTIONS TO ASK: Check to make sure all Team Members and material handling personnel are aware of and following WIP instructions. | E43: 2 | F43: R | G43: 2 | H43: 2 | I43: 4 | J43: 2
A44: 32 | B44: Are all parts and components labeled properly? | C44: LOOK FOR: Shipping Label, Drawing, Process Control Plan Inspection Sheets QUESTIONS TO ASK: Does the Shipping Label match the Part Print? Verify against Control Plan and In-Process Inspection sheets. | E44: 3 | F44: Y | G44: 3 | H44: 3 | I44: 4 | J44: 3
B45: # Corrective Action Required = | C45: =IF(E45="NR/NA","NR/NA",COUNTIF(J38:J44,"<3")) -> 4 | D45: SCORE / POTENTIAL | E45: =IF(H45=35,"NR/NA",SUM(G38:G44)) -> 16 | F45: =I45 -> 28 | G45: =SUM(G38:G44) -> 16 | H45: =SUM(H38:H44) -> 16 | I45: =SUM(I38:I44) -> 28 | J45: =SUM(J38:J44) -> 16
B46: F. GAGING
A47: 33 | B47: Are all tools and gauges properly identified? | C47: LOOK FOR: Gage and Tool Certification Records QUESTIONS TO ASK: Verify tools and gages are to the latest engineering change level and that Preventative Maintenance is as specified. Ensure that all ATI or other customer's tags are available on the tooling. | E47: 1 | F47: =IF(E47="NR/NA","",IF(E47>3,"G",IF(E47>2,"Y","R"))) -> R | G47: 1 | H47: 1 | I47: 4 | J47: 1
A48: 34 | B48: Are all gauges within the defined calibration frequency? | C48: LOOK FOR: Gage and Tool Certification Records Verify gages that are sent outside are within defined calibration frequency. QUESTIONS TO ASK: Check to make sure gauges are within calibration. Verify that tools and gages are to the latest engineering change level. | E48: 2 | F48: R | G48: 2 | H48: 2 | I48: 4 | J48: 2
A49: 35 | B49: Does the supplier periodically evaluate families of gages on the control plan? | C49: LOOK FOR: Gage R&R Documentation QUESTIONS TO ASK: Best practice is that gauge R&R is done at a minimum of an annual basis for all families of gauges on the control plan. | E49: 3 | F49: Y | G49: 3 | H49: 3 | I49: 4 | J49: 3
A50: 36 | B50: Does the supplier react appropriately to the results of the MSA's? | C50: LOOK FOR: Gage R&R Documentation QUESTIONS TO ASK: If gauge R&R is between 10% and 30% (see latest revision of MSA & PPAP Manuals) has the supplier conducted an evaluation of the results with a cross-functional team? | E50: 4 | F50: =IF(E50="NR/NA","",IF(E50>3,"G",IF(E50>2,"Y","R"))) -> G | G50: =IF(E50="NR/NA",0,E50) -> 4 | H50: =IF(E50="NR/NA",5,E50) -> 4 | I50: =IF(E50="NR/NA",0,4) -> 4 | J50: =IF(E50="NR/NA",5,E50) -> 4
A51: 37 | B51: Do gauges have sufficient operator instructions? | C51: LOOK FOR: Gauge Instructions QUESTIONS TO ASK: Ensure that Gauge Instructions are readily available (attached to the gauge is preferable). | E51: 1 | F51: R | G51: 1 | H51: 1 | I51: 4 | J51: 1
A52: 38 | B52: Is the gaging method proper for the feature being gaged? | C52: LOOK FOR: Process control plan, gaging method, feature tolerances QUESTIONS TO ASK: Sample part features and gaging method. | E52: 2 | F52: R | G52: =IF(E52="NR/NA",0,E52) -> 2 | H52: =IF(E52="NR/NA",5,E52) -> 2 | I52: =IF(E52="NR/NA",0,4) -> 4 | J52: =IF(E52="NR/NA",5,E52) -> 2
A53: 39 | B53: Are boundary samples available to operators and in use? | C53: LOOK FOR: Operator Instructions QUESTIONS TO ASK: Verify that supplier has actual boundary samples for review and that they are being used as required. | E53: 3 | F53: Y | G53: 3 | H53: 3 | I53: 4 | J53: 3
A54: 40 | B54: Verify error proofing devices are being checked to ensure they are working properly | C54: LOOK FOR: Supplier error proof verification procedure Reaction plan when error proofing devices fail the verification QUESTIONS TO ASK: Ask supplier to provide log sheets to show error proof verification | E54: 4 | F54: =IF(E54="NR/NA","",IF(E54>3,"G",IF(E54>2,"Y","R"))) -> G | G54: =IF(E54="NR/NA",0,E54) -> 4 | H54: =IF(E54="NR/NA",5,E54) -> 4 | I54: =IF(E54="NR/NA",0,4) -> 4 | J54: =IF(E54="NR/NA",5,E54) -> 4
A55: 41 | B55: Are Master Parts available for error proofing devices, are they identified properly (i.e. painted), and are they in use? | C55: LOOK FOR: Set Up Records QUESTIONS TO ASK: Challenge the Error Proofing system. Is there an Error Proofing Verification Plan? Are there Test Parts for Error Proofing. | E55: 1 | F55: R | G55: 1 | H55: 1 | I55: 4 | J55: 1
B56: # Corrective Action Required = | C56: =IF(E56="NR/NA","NR/NA",COUNTIF(J47:J55,"<3")) -> 5 | D56: SCORE / POTENTIAL | E56: =IF(H56=45,"NR/NA",SUM(G47:G55)) -> 21 | F56: =I56 -> 36 | G56: =SUM(G47:G55) -> 21 | H56: =SUM(H47:H55) -> 21 | I56: =SUM(I47:I55) -> 36 | J56: =SUM(J47:J55) -> 21
B57: G. PROCESS CONTROLS
A58: 42 | B58: Do your supplier's provide evidence of approved material for all components needed for the assembled part? | C58: LOOK FOR: Certification/Test Records, Supplier PPAP Packages Cumulative Control Data QUESTIONS TO ASK: Review Incoming Inspection Sheets (if available). Review Hold or Reject area for Incoming Inspection area. Are component parts/assemblies on the manufacturing floor approved prior to release? | E58: 1 | F58: =IF(E58="NR/NA","",IF(E58>3,"G",IF(E58>2,"Y","R"))) -> R | G58: 1 | H58: 1 | I58: 4 | J58: 1
A59: 43 | B59: Are controls in place to ensure only approved incoming material is released for production? | C59: LOOK FOR: Certification/Test Records, Supplier PPAP Packages Cumulative Control Data QUESTIONS TO ASK: Review PPAP data, including interim approvals. How do you indicate that component parts/assemblies on the manufacturing floor are approved for use. | E59: 2 | F59: R | G59: 2 | H59: 2 | I59: 4 | J59: 2
A60: 44 | B60: When parts require traceability, do controls link component traceability to the final part? | C60: LOOK FOR: Traceability Documents QUESTIONS TO ASK: Look for Lot Controls, Dimensional Traceability to N.I.S.T. | E60: 3 | F60: Y | G60: 3 | H60: 3 | I60: 4 | J60: 3
A61: 45 | B61: Where the Process Control Plan calls for SPC is the data properly recorded? | C61: LOOK FOR: Process Control Plan, SPC Records QUESTIONS TO ASK: Look at actual SPC records and data collection. Are all data boxes filled in? Are control limits calculated? Are there trends/patterns present that would indicate a need to recalculate limits? Are the limits actually control limits or are they spec limits? Do the control limits exceed the specified tolerances? Do the limits indicate the process to be incapable and yet the process is allowed to run? | E61: 4 | F61: G | G61: 4 | H61: 4 | I61: 4 | J61: 4
A62: 46 | B62: Are the Upper Control Limits (UCL) and Lower Control Limits (LCL) current? | C62: LOOK FOR: X-Bar and R Charts QUESTIONS TO ASK: How old are the UCL and LCL? | E62: 1 | F62: R | G62: 1 | H62: 1 | I62: 4 | J62: 1
A63: 47 | B63: Does the data make sense and are reasonable control limits shown? | C63: LOOK FOR: Run Charts Process Control Plan SPC Records QUESTIONS TO ASK: Look at actual SPC records. Are all data boxes filled in? Are control limits calculated? Are there trends present that would indicate a need to recalculate limits that have been ignored? Are the limits actually control limits or are they spec limits? Do the control limits exceed the specified tolerances? Do the limits indicate the process to be incapable and yet the process is allowed to run? | E63: 2 | F63: R | G63: 2 | H63: 2 | I63: 4 | J63: 2
A64: 48 | B64: Where checks are called for in the PCP, are results being properly logged? | C64: LOOK FOR: Process Control Plan Check Sheets (All as described in SWI, JEI, & JES) QUESTIONS TO ASK: Is operator recording results? | E64: 3 | F64: Y | G64: 3 | H64: 3 | I64: 4 | J64: 3
A65: 49 | B65: Are suitable actions taken in case of deviations? | C65: LOOK FOR: PFMEA Process Control Plan Check Sheets / SPC Data Color coding of containers, hold tags Containment or non-conforming forms Segregation areas QUESTIONS TO ASK: Is there evidence that all concerns are tracked back to the PFMEA to confirm that the failure mode has been included? Look for PFMEA change log cross referenced to SQN log, customer complaint log, voice of the process review, warranty data, etc. Is there evidence that controls have been added, or controls/RPNs revised based on concerns. | E65: 4 | F65: G | G65: 4 | H65: 4 | I65: 4 | J65: 4
A66: 50 | B66: Are the supplier product audits showing acceptable results for Final Product? | C66: LOOK FOR: Dock and Incoming Audit Sheets, Layered Audits QUESTIONS TO ASK: Documented failed parts per shipment. Dock Audits/Tracking Trends/Discrepant Parts. | E66: 1 | F66: R | G66: 1 | H66: 1 | I66: 4 | J66: 1
A67: 51 | B67: Does the manufacturing process demonstrate the required capability or performance (Cpk)? | C67: LOOK FOR: Cpk Studies QUESTIONS TO ASK: Review current capability records. Does the process demonstrate there required Cpk for special characteristics (per AT-1927) Is the process capability too high (over 6) and does the data support such results? | E67: 2 | F67: R | G67: 2 | H67: 2 | I67: 4 | J67: 2
A68: 52 | B68: Does packaging and material handling protect parts from damage and conform to AT-1700 Packaging Requirements? | C68: LOOK FOR: Dock and Incoming Audit Sheets QUESTIONS TO ASK: Does WIP protection at supplier have adequate protection to protect parts from damage until packed and on carrier? Is there evidence that damage observed at assembly center, etc., is present at supplier? Are there any SQNs related to Packaging and Handling? For Material handling throughout the entire process, are parts protected from damage? | E68: 3 | F68: =IF(E68="NR/NA","",IF(E68>3,"G",IF(E68>2,"Y","R"))) -> Y | G68: 3 | H68: 3 | I68: 4 | J68: 3
B69: # Corrective Action Required = | C69: =IF(E69="NR/NA","NR/NA",COUNTIF(J58:J68,"<3")) -> 6 | D69: SCORE / POTENTIAL | E69: =IF(H69=55,"NR/NA",SUM(G58:G68)) -> 26 | F69: =I69 -> 44 | G69: =SUM(G58:G68) -> 26 | H69: =SUM(H58:H68) -> 26 | I69: =SUM(I58:I68) -> 44 | J69: =SUM(J58:J68) -> 26
B70: H. MANAGEMENT SYSTEM
A71: 53 | B71: Does the supplier execute their safety procedures? | C71: LOOK FOR: Safety procedures Safety training Safety audits Proper execution of procedures during audit QUESTIONS TO ASK: What are your safety procedures? How often do you perform safety audits? How do you track safety performance? | E71: 1 | F71: =IF(E71="NR/NA","",IF(E71>3,"G",IF(E71>2,"Y","R"))) -> R | G71: =IF(E71="NR/NA",0,E71) -> 1 | H71: =IF(E71="NR/NA",5,E71) -> 1 | I71: =IF(E71="NR/NA",0,4) -> 4 | J71: =IF(E71="NR/NA",5,E71) -> 1
A72: 54 | B72: Does the supplier have a safety protocol training that is required for visitors to review? | C72: LOOK FOR: Visitor safety protocol QUESTIONS TO ASK: What safety training do visitors have to review prior to entry to your facilities? | E72: 2 | F72: R | G72: =IF(E72="NR/NA",0,E72) -> 2 | H72: =IF(E72="NR/NA",5,E72) -> 2 | I72: =IF(E72="NR/NA",0,4) -> 4 | J72: =IF(E72="NR/NA",5,E72) -> 2
A73: 55 | B73: Is there a Preventive Maintenance (PM) plan on tools and equipment, and is it followed? | C73: LOOK FOR: PM Log PFMEA QUESTIONS TO ASK: Verify PM plan is being followed. Review PM Log to verify PM performed according to schedule and procedure. | E73: 3 | F73: Y | G73: 3 | H73: 3 | I73: 4 | J73: 3
A74: 56 | B74: Is there a critical machine listing, and are critical machine components identified and readily available | C74: LOOK FOR: PM procedure Critical machine list Critical machine replacement parts list QUESTIONS TO ASK: Ask supplier to review their availability of critical spare parts | E74: 4 | F74: G | G74: =IF(E74="NR/NA",0,E74) -> 4 | H74: =IF(E74="NR/NA",5,E74) -> 4 | I74: =IF(E74="NR/NA",0,4) -> 4 | J74: =IF(E74="NR/NA",5,E74) -> 4
A75: 57 | B75: Is there a process for documenting and tracking Downtime, Scrap, and Premium Freight? | C75: LOOK FOR: Plant Informational Board Current Charting of Information QUESTIONS TO ASK: Are records for Downtime used to manage the business? Look for existing charts, data logs, action plans, or similar records that validate the existence of a tracking mechanism. | E75: 1 | F75: R | G75: 1 | H75: 1 | I75: 4 | J75: 1
A76: 58 | B76: Is there a defined process for documenting and tracking internal and external Problem Reports? | C76: LOOK FOR: Plant Informational Board Current Charting of Information Evidence of updated PFMEA and PCP BEST PRACTICES: - Meetings held every shift. - Operators attend meetings. - Problem Solving forms for each issue displayed or available in area. QUESTIONS TO ASK: Are records for Plant Problem Reports used to manage the business? Look for existing charts, data logs, action plans, or similar records that validate the existence of a tracking mechanism. | E76: 2 | F76: R | G76: 2 | H76: 2 | I76: 4 | J76: 2
A77: 59 | B77: Does leadership ensure that out of control conditions are managed? | C77: LOOK FOR: SPC Records Action Plans Fast Response Tracking form Layered Audit form/results Quality Q or equivalent is posted and up to date QUESTIONS TO ASK: Review SPC data, check to see that there is a system to manage out of control conditions that includes action plans with assigned responsibility. Ask someone noted on the action plan to explain their involvement and or responsibility. | E77: 3 | F77: Y | G77: =IF(E77="NR/NA",0,E77) -> 3 | H77: =IF(E77="NR/NA",5,E77) -> 3 | I77: =IF(E77="NR/NA",0,4) -> 4 | J77: =IF(E77="NR/NA",5,E77) -> 3
A78: 60 | B78: Are defined Action Plans (AP) followed? | C78: LOOK FOR: SPC Records Action Plans QUESTIONS TO ASK: Review plans for timeliness, completeness, and effectiveness. | E78: 4 | F78: G | G78: 4 | H78: 4 | I78: 4 | J78: 4
A79: 61 | B79: Is responsibility for implementation assigned and do people understand their responsibility? | C79: LOOK FOR: SPC Records Action Plans Problem Log QUESTIONS TO ASK: From SPC review, check to see that there is a system to manage out of control conditions that includes action plans with assigned responsibility. Ask someone noted on the action plan to explain their involvement and or responsibility. | E79: 1 | F79: R | G79: 1 | H79: 1 | I79: 4 | J79: 1
A80: 62 | B80: Are problems quickly communicated to people who can help and does the system response meet the supplier's requirements? | C80: LOOK FOR: Problem Log Fast Response meeting minutes or similar QUESTIONS TO ASK: Does an escalation process exist to quickly communicate to the appropriate level within the organization and ensure that support and action plans are followed? | E80: 2 | F80: R | G80: 2 | H80: 2 | I80: 4 | J80: 2
A81: 63 | B81: If more than one shift, does information part passes across shifts? | C81: LOOK FOR: Shift Log Fast Response meeting minutes or similar QUESTIONS TO ASK: Look for shift log/notes. Audit records to assure that reported problems and their resolutions are also reported back to the originator. Look for evidence of a closed loop on shift problems. | E81: 3 | F81: Y | G81: 3 | H81: 3 | I81: 4 | J81: 3
A82: 64 | B82: Does an audit system to verify the documented quality, manufacturing and assembly processes exist? | C82: LOOK FOR: 1) Completed audits at a frequency of once per shift. Evidence that Team Members, Team Leaders, Group Leaders are all involved in performing audits 2) Customer Specific checks for past failures. (i.e. Assigned at Fast Response, for SQN or Liaison Report issues, error-proofing verification, etc...) 3) Workstation Specific check items (Standardized Work, 5S-WPO, Rotation Log, Training, etc..) 4) System Specific items (Preventative Maintenance, Business Plan reviews, Shop Floor Management standards, etc..) 5) External supplier audits QUESTIONS TO ASK: Does an audit schedule or plan exist? Is there a link from audits to Lessons Learned system or equivalent? Audit records to assure that reported problems and their resolutions are also reported back to the originator. BEST PRACTICE: Layered Process Audit system. Check that the Audits are verified by the next level Supervisor. The results are shared with the team. Noncompliance's are addressed at regularly scheduled meetings with a countermeasure list with responsibility and dates. | E82: 4 | F82: G | G82: 4 | H82: 4 | I82: 4 | J82: 4
A83: 65 | B83: Is there a system in place to capture or identify information that will support continuous improvements to all processes? | C83: LOOK FOR: 1) Completed Corrective action forms. 2) Continuous improvement team notes and agendas. 3) Leadership notes or agenda indicating Lesson Learned system is reviewed. QUESTIONS TO ASK: Is Continuous Improvement, APQP, new parts, Customer re-allocations (tool moves) and RPN Reduction team checklists or notes included in lessons learned database? | E83: 1 | F83: R | G83: 1 | H83: 1 | I83: 4 | J83: 1
A84: 66 | B84: Do contingency plans exist for an interruption in the supply chain due to internal and external factors? | C84: LOOK FOR: 1) Identification and evaluation of risks to all processes. 2) Customer notification process. 3) Periodic plan review and testing. QUESTIONS TO ASK: What is the plan to maintain production in case of natural disaster, utility interruption, supplier production gap, or labor shortage? What are the largest risks to the manufacturing process both internal and external? | E84: 1 | F84: =IF(E84="NR/NA","",IF(E84>3,"G",IF(E84>2,"Y","R"))) -> R | G84: =IF(E84="NR/NA",0,E84) -> 1 | H84: =IF(E84="NR/NA",5,E84) -> 1 | I84: =IF(E84="NR/NA",0,4) -> 4 | J84: =IF(E84="NR/NA",5,E84) -> 1
A85: 67 | B85: Are all applicable statutory and regulatory requirements in addition to all special product and process characteristics cascaded down supply chain to point of manufacture? | C85: LOOK FOR: 1) List of all requirements and special characteristics. 2) Notification to supply chain 3) Acknowledgement from supply chain of receipt of requirements. QUESTIONS TO ASK: How are all applicable requirements gathered and documented? How is the supply chain notified of applicable requirements? | E85: 1 | F85: R | G85: 1 | H85: 1 | I85: 4 | J85: 1
B86: # Corrective Action Required = | C86: =IF(E86="NR/NA","NR/NA",COUNTIF(J71:J83,"<3")) -> 7 | D86: SCORE / POTENTIAL | E86: =IF(H86=65,"NR/NA",SUM(G71:G85)) -> 33 | F86: =I86 -> 60 | G86: =SUM(G71:G85) -> 33 | H86: =SUM(H71:H85) -> 33 | I86: =SUM(I71:I85) -> 60 | J86: =SUM(J71:J85) -> 33
B87: I. CONTAMINATION CONTROL
A88: 68 | B88: Do procedures and work instructions exist for contamination control where appropriate? | C88: LOOK FOR: Work Instruction Control Plan QUESTIONS TO ASK: Do the work instructions and/or Control Plan address contamination control? | E88: 1 | F88: =IF(E88="NR/NA","",IF(E88>3,"G",IF(E88>2,"Y","R"))) -> R | G88: 1 | H88: 1 | I88: 4 | J88: 1
A89: 69 | B89: Is in process material adequately protected from contamination? | C89: LOOK FOR: Work Instruction, WIP QUESTIONS TO ASK: Review work instructions for procedures and WIP to determine if in process material is adequately protected. | E89: 2 | F89: R | G89: 2 | H89: 2 | I89: 4 | J89: 2
A90: 70 | B90: Does dunnage adequately protect parts from contamination? | C90: LOOK FOR: Work Instruction Product on Dock QUESTIONS TO ASK: Review work instructions for procedures and material on the dock to determine if dunnage is providing adequate protection. | E90: 3 | F90: Y | G90: 3 | H90: 3 | I90: 4 | J90: 3
A91: 71 | B91: Where applicable, is regular PM being performed on washers? | C91: LOOK FOR: Washer Equipment, PM Log QUESTIONS TO ASK: Review PM log against equipment number to determine if adequate maintenance is being performed. | E91: 4 | F91: G | G91: 4 | H91: 4 | I91: 4 | J91: 4
A92: 72 | B92: When applicable, are washers running at the required parameters? | C92: LOOK FOR: Work Instruction, Control Plan, Log Sheet QUESTIONS TO ASK: Are concentrations, temperatures, etc. running at the required parameters? Are these checked and logged per the Control Plan frequency? | E92: 1 | F92: R | G92: 1 | H92: 1 | I92: 4 | J92: 1
A93: 73 | B93: If part requires TIS-5750/5751, is regular analysis being performed? | C93: LOOK FOR: Work Instruction, Control Plan, Log Sheet QUESTIONS TO ASK: Are washdowns being done and logged per the Control Plan frequency? | E93: 2 | F93: R | G93: 2 | H93: 2 | I93: 4 | J93: 2
A94: 74 | B94: Does the TIS-5750/5751 analysis meet the intent of the spec? | C94: LOOK FOR: Work Instruction QUESTIONS TO ASK: Compare the work instructions to the TIS-5750/5751 spec to insure it is being done properly. | E94: 3 | F94: Y | G94: 3 | H94: 3 | I94: 4 | J94: 3
A95: 75 | B95: Is there a regular review of TIS-5750/5751 contamination data by leadership? | C95: LOOK FOR: Reports, data summaries, action plans, continuous improvement programs QUESTIONS TO ASK: Is the data reviewed? Who reviews it? On what frequency? | E95: 4 | F95: G | G95: 4 | H95: 4 | I95: 4 | J95: 4
A96: 76 | B96: If TIS-5750/5751 results are not favorable, are actions being taken? | C96: LOOK FOR: Reports, data summaries, action plans, continuous improvement programs QUESTIONS TO ASK: What is done when a point is out of control? Who is responsible? | E96: 1 | F96: R | G96: 1 | H96: 1 | I96: 4 | J96: 1
B97: # Corrective Action Required = | C97: =IF(E97="NR/NA","NR/NA",COUNTIF(J88:J96,"<3")) -> 5 | D97: SCORE / POTENTIAL | E97: =IF(H97=45,"NR/NA",SUM(G88:G96)) -> 21 | F97: =I97 -> 36 | G97: =SUM(G88:G96) -> 21 | H97: =SUM(H88:H96) -> 21 | I97: =SUM(I88:I96) -> 36 | J97: =SUM(J88:J96) -> 21
B98: J. LABELING
A99: 77 | B99: Are the latest revisions of AT-1724 (Shipping Parts ID Label Standard) and AT-1700 (ATI Packaging & Identification Reqs) available? | C99: LOOK FOR: Latest revision of AT-1724 and AT-1700, or ready access to the Supplier Quality website QUESTIONS TO ASK: Are the latest forms of these documents available? | E99: 1 | F99: =IF(E99="NR/NA","",IF(E99>3,"G",IF(E99>2,"Y","R"))) -> R | G99: 1 | H99: 1 | I99: 4 | J99: 1
A100: 78 | B100: Are all bar codes legible? (Not faded, smeared, or poorly printed) | C100: LOOK FOR: Smeared, faded or otherwise illegible labels on containers. QUESTIONS TO ASK: Are all bar codes readable? | E100: 2 | F100: R | G100: 2 | H100: 2 | I100: 4 | J100: 2
A101: 79 | B101: Are all GM references removed from ATI-bound container labels? | C101: LOOK FOR: GM references on ATI-bound container labels QUESTIONS TO ASK: Are all containers free of labels with GM references? | E101: 3 | F101: Y | G101: 3 | H101: 3 | I101: 4 | J101: 3
A102: 80 | B102: Are all old shipping labels removed or sufficiently covered? | C102: LOOK FOR: Unremoved or uncovered old labels that may conflict with current labeling. QUESTIONS TO ASK: Are all containers free of conflicting old labeling? | E102: 4 | F102: G | G102: 4 | H102: 4 | I102: 4 | J102: 4
A103: 81 | B103: Do any certified material labels conflict with or overwhelm the shipping label(s)? | C103: LOOK FOR: Certified Material labeling QUESTIONS TO ASK: Are all containers free from being obstructed or overwhelmed by Certified Material labeling? | E103: 1 | F103: R | G103: 1 | H103: 1 | I103: 4 | J103: 1
A104: 82 | B104: Are parts properly identified and segregated by part number? | C104: LOOK FOR: Standardized storage and segregation of material QUESTIONS TO ASK: Are parts identified, stored and segregated correctly? | E104: 2 | F104: R | G104: 2 | H104: 2 | I104: 4 | J104: 2
A105: 83 | B105: Is the proper ATI shipping address printed on all shipping labels? | C105: LOOK FOR: Proper ATI Shipping Dock address QUESTIONS TO ASK: Is the proper ATI Dock printed on the shipping label? | E105: 3 | F105: Y | G105: 3 | H105: 3 | I105: 4 | J105: 3
A106: 84 | B106: Are all shipping labels the correct type, format, size and placed correctly (REF: AT-1724)? | C106: LOOK FOR: Proper label type (mixed load, master load, etc.) Improper sized labels, Improperly placed labels Improperly filled out mixed load, master load or individual part number labels QUESTIONS TO ASK: Are all shipping labels the correct type, format, size and placed correctly (per AT-1724)? | E106: 4 | F106: G | G106: 4 | H106: 4 | I106: 4 | J106: 4
B107: # Corrective Action Required = | C107: =IF(E107="NR/NA","NR/NA",COUNTIF(J99:J106,"<3")) -> 4 | D107: SCORE / POTENTIAL | E107: =IF(H107=40,"NR/NA",SUM(G99:G106)) -> 20 | F107: =I107 -> 32 | G107: =SUM(G99:G106) -> 20 | H107: =SUM(H99:H106) -> 20 | I107: 32 | J107: 20
B108: K. LEAK TESTING | C108: (If not required, leave score at "NR")
A109: 85 | B109: Does method of testing part match drawing requirements? | C109: LOOK FOR: Leak Test Equipment, Drawing/Spec Requirement QUESTIONS TO ASK: If drawing/spec calls for air/water, is the appropriate test being performed? | E109: 1 | F109: =IF(E109="NR/NA","",IF(E109>3,"G",IF(E109>2,"Y","R"))) -> R | G109: 1 | H109: 1 | I109: 4 | J109: 1
A110: 86 | B110: Are parameters being used meeting specifications? | C110: LOOK FOR: Print/Spec Requirement QUESTIONS TO ASK: Verify that pressures, times, flow rates, etc. being used match the drawing and spec requirements. | E110: 2 | F110: R | G110: 2 | H110: 2 | I110: 4 | J110: 2
A111: 87 | B111: Are the chambers tested and required holes vented per blueprint requirements? | C111: LOOK FOR: Leak Test Equipment, Drawing/Spec Requirement QUESTIONS TO ASK: Verify that the correct chambers are being pressurized and that holes are vented if required. Multiple tests for cross leakage may be required if more than one chamber is being tested. | E111: 3 | F111: Y | G111: 3 | H111: 3 | I111: 4 | J111: 3
A112: 88 | B112: Is part positively identified when passing leak test? | C112: LOOK FOR: Leak Test Equipment QUESTIONS TO ASK: Part should be stamped when passing leak test. Automatic stamping is preferred. | E112: 4 | F112: G | G112: 4 | H112: 4 | I112: 4 | J112: 4
A113: 89 | B113: Is adequate containment maintained for parts failing leak test? | C113: LOOK FOR: Leak Test Equipment, Work Instructions QUESTIONS TO ASK: Is the failed part locked in equipment after failing? If manual operation, is adequate segregation and containment made? Are parts marked when failing? Are work instructions being followed? | E113: 1 | F113: R | G113: 1 | H113: 1 | I113: 4 | J113: 1
A114: 90 | B114: Are leak test master samples available and are they adequately protected from contamination? | C114: LOOK FOR: Master Samples QUESTIONS TO ASK: Verify that master good and bad samples are present. | E114: 2 | F114: R | G114: 2 | H114: 2 | I114: 4 | J114: 2
A115: 91 | B115: Is leak tester being mastered? | C115: LOOK FOR: Master Samples, Log Sheet QUESTIONS TO ASK: Verify that log sheet shows masters being run per Control Plan and work instructions. Once per shift at a minimum. | E115: 3 | F115: Y | G115: 3 | H115: 3 | I115: 4 | J115: 3
B116: # Corrective Action Required = | C116: =IF(E116="NR/NA","NR/NA",COUNTIF(J109:J115,"<3")) -> 4 | D116: SCORE / POTENTIAL | E116: =IF(H116=35,"NR/NA",SUM(G109:G115)) -> 16 | F116: =I116 -> 28 | G116: =SUM(G109:G115) -> 16 | H116: =SUM(H109:H115) -> 16 | I116: 28 | J116: 16
B117: L. HEAT TREATING | C117: (If not required, leave score at "NR")
A118: 92 | B118: Are the latest Allison heat treat specifications on file? | C118: LOOK FOR: Ask to see and verify that specifications are to the latest revision. QUESTIONS TO ASK: How do they maintain and assure they have the latest specifications on file? | E118: 1 | F118: =IF(E118="NR/NA","",IF(E118>3,"G",IF(E118>2,"Y","R"))) -> R | G118: 1 | H118: 1 | I118: 4 | J118: 1
A119: 93 | B119: Have they completed the annual CQI-9 re-assessment audit? | C119: LOOK FOR: Verify revision date on CQI 9 audit. Review their CQI-9 action plan. QUESTIONS TO ASK: What procedure defines responsibility for completing the annual re-assessment and when it is performed? | E119: 2 | F119: R | G119: 2 | H119: 2 | I119: 4 | J119: 2
A120: 94 | B120: Is there a procedure that documents when and how a temperature uniformity survey is completed on a furnace? | C120: LOOK FOR: Verify procedure and review a temperature uniformity survey that has been completed per the requirements. QUESTIONS TO ASK: What system is in place to verify that temperature uniformity surveys are always completed on time? Are temperature uniformity surveys completed to CQI-9 or AMS 2750 requirements? | E120: 3 | F120: Y | G120: 3 | H120: 3 | I120: 4 | J120: 3
A121: 95 | B121: What procedure documents how questionable, deviated, rework or scrap material is handled in their facility? | C121: LOOK FOR: Verify the material hold area is identified, proper tagging of material and proper documentation for disposition of material. QUESTIONS TO ASK: Who has authority to make determination of disposition of material? When does Allison Transmission get contacted? | E121: 4 | F121: G | G121: 4 | H121: 4 | I121: 4 | J121: 4
A122: 96 | B122: Do laboratory procedures document how to complete lab evaluations for Allison parts? | C122: LOOK FOR: Lab procedures. Ask to see a lab evaluation completed on an Allison part. QUESTIONS TO ASK: Where and for how long are lab records stored? Could they generate past results if we had a problem in the field? | E122: 1 | F122: R | G122: 1 | H122: 1 | I122: 4 | J122: 1
A123: 97 | B123: Are inspection requirements being completed and documented? | C123: LOOK FOR: Inspection documentation. QUESTIONS TO ASK: How are the inspectors trained on the procedures to perform part inspections and the proper method of completing documentation? Is SPC being used for process trending? | E123: 2 | F123: R | G123: 2 | H123: 2 | I123: 4 | J123: 2
A124: 98 | B124: Are hardness machines clean, level and being calibrated annually? | C124: LOOK FOR: Calibration tags, machine level and clean. Review calibration procedure. QUESTIONS TO ASK: If a machine fails annual calibration, what procedure documents what happens? | E124: 3 | F124: Y | G124: 3 | H124: 3 | I124: 4 | J124: 3
A125: 99 | B125: Are hardness machines being verified per the proper ASTM requirements? | C125: LOOK FOR: Verification documentation QUESTIONS TO ASK: How are inspection personnel trained on the procedure to perform inspections and documentation? What happens when a hardness machine does not pass a daily verification? | E125: 4 | F125: G | G125: 4 | H125: 4 | I125: 4 | J125: 4
A126: 100 | B126: Who has responsible for process development and how is heat treat process documentation maintained? | C126: LOOK FOR: Heat treat floor process documentation. All process parameters listed on process document. QUESTIONS TO ASK: What procedure controls process documentation, process changes, process change authority and proper sign off of manufacturing floor documentation that operations have been completed? | E126: 1 | F126: R | G126: 1 | H126: 1 | I126: 4 | J126: 1
A127: 101 | B127: Are temperature instruments and flows scopes being calibrated every three months? | C127: LOOK FOR: Verify at each furnace that calibrations are up to date. QUESTIONS TO ASK: What procedure details this activity? Are thermal couples being changed out on a routine scheduled basis? | E127: 2 | F127: R | G127: 2 | H127: 2 | I127: 4 | J127: 2
A128: 102 | B128: How are heat treat personnel trained and where are the training records stored? | C128: LOOK FOR: Training records. Look for furnace start up, shut down and other safety documentation at each furnace for operate aid. QUESTIONS TO ASK: Select a random furnace operator or inspector and ask: How were you trained? How and where is your training documented? | E128: 3 | F128: Y | G128: 3 | H128: 3 | I128: 4 | J128: 3
A129: 103 | B129: If the supplier uses a sub-tier for any heat treat operation, is the supplier on the Allison approved HT supplier listing? | C129: LOOK FOR: Evidence sub-tier suppliers are on the Allison approved HT supplier listing. QUESTIONS TO ASK: Do you have suppliers that provide HT for any of our parts? Ask the supplier to provide a listing of the sub-tier heat treat suppliers they use for Allison parts. | E129: 4 | F129: G | G129: =IF(E129="NR/NA",0,E129) -> 4 | H129: =IF(E129="NR/NA",5,E129) -> 4 | I129: =IF(E129="NR/NA",0,4) -> 4 | J129: =IF(E129="NR/NA",5,E129) -> 4
B130: # Corrective Action Required = | C130: =IF(E130="NR/NA","NR/NA",COUNTIF(J118:J129,"<3")) -> 6 | D130: SCORE / POTENTIAL | E130: =IF(H130=60,"NR/NA",SUM(G118:G129)) -> 30 | F130: =I130 -> 48 | G130: =SUM(G118:G129) -> 30 | H130: =SUM(H118:H129) -> 30 | I130: 48 | J130: 30
B131: M. DISTRIBUTOR/WAREHOUSE | C131: (If not required, leave score at "NR")
A132: 104 | B132: Are actual drawings available at the distributor/warehouse, and do they match the change level on the latest Allison Purchase Order? | C132: LOOK FOR: Drawing, Material Spec Sheets, Allison P.O. QUESTIONS TO ASK: Do you have drawings? | E132: 1 | F132: =IF(E132="NR/NA","",IF(E132>3,"G",IF(E132>2,"Y","R"))) -> R | G132: 1 | H132: 1 | I132: 4 | J132: 1
A133: 105 | B133: Is there a log/computer record to confirm inventory movement? | C133: LOOK FOR: Document or database detailing inventory control. QUESTIONS TO ASK: What system is in place to control inventory? | E133: 2 | F133: R | G133: 2 | H133: 2 | I133: 4 | J133: 2
A134: 106 | B134: Is a first in/first out (FIFO) system in use? | C134: LOOK FOR: Document or database detailing inventory control. Shipping Label QUESTIONS TO ASK: How is inventory managed to ensure FIFO is maintained? | E134: 3 | F134: Y | G134: 3 | H134: 3 | I134: 4 | J134: 3
A135: 107 | B135: Is the facility secure? | C135: LOOK FOR: Gates, Key/Badge Coded Doors QUESTIONS TO ASK: Can anyone from the street walk into your facility? Are the factory exits propped open during the summer? | E135: 4 | F135: G | G135: 4 | H135: 4 | I135: 4 | J135: 4
A136: 108 | B136: Is there an up-to-date quality manual? | C136: LOOK FOR: Quality Manual QUESTIONS TO ASK: Do you have a quality manual? What system do you have in place to keep it current? | E136: 1 | F136: R | G136: 1 | H136: 1 | I136: 4 | J136: 1
A137: 109 | B137: Does the quality manual include a procedure for sorting? | C137: LOOK FOR: Quality Manual, Sort Logs QUESTIONS TO ASK: What is your procedure for sorting material? Is it documented? | E137: 2 | F137: R | G137: 2 | H137: 2 | I137: 4 | J137: 2
A138: 110 | B138: Does the quality manual include a procedure for handling non-conforming material? | C138: LOOK FOR: Quality Manual, Material Logs QUESTIONS TO ASK: What is your procedure for handling non-conforming material? Is it documented? | E138: 3 | F138: Y | G138: 3 | H138: 3 | I138: 4 | J138: 3
A139: 111 | B139: Does the quality manual include a procedure for storing process control plans or inspection data? | C139: LOOK FOR: Quality Manual, Control Plans, Inspection Data QUESTIONS TO ASK: What is your procedure for handling process control plans and inspection data? Is it documented? | E139: 4 | F139: G | G139: 4 | H139: 4 | I139: 4 | J139: 4
A140: 112 | B140: Does the quality manual include a flow chart of how the warehouse is notified of problems from their suppliers? | C140: LOOK FOR: Problem Log Flow Chart QUESTIONS TO ASK: Does an escalation process exist to quickly communicate to the appropriate level within the organization and ensure that support and action plans are followed? | E140: 1 | F140: R | G140: 1 | H140: 1 | I140: 4 | J140: 1
A141: 113 | B141: Is the building condition adequate (Roof leaks, Air & Heating, Floor, etc.)? | C141: LOOK FOR: General condition of building and any signs of problems. QUESTIONS TO ASK: Who handles the building maintenance? Is the building on a PM schedule? | E141: 2 | F141: R | G141: 2 | H141: 2 | I141: 4 | J141: 2
A142: 114 | B142: Is there a minimum of one month of inventory on hand? | C142: LOOK FOR: Document or database detailing inventory control. QUESTIONS TO ASK: What system is in place to manage inventory vs. customer requirements? | E142: 3 | F142: Y | G142: =IF(E142="NR/NA",0,E142) -> 3 | H142: =IF(E142="NR/NA",5,E142) -> 3 | I142: =IF(E142="NR/NA",0,4) -> 4 | J142: =IF(E142="NR/NA",5,E142) -> 3
A143: 115 | B143: Is PPAP documentation available? | C143: LOOK FOR: PSW, Supporting PPAP documentation QUESTIONS TO ASK: Allison retains only the PSW, show me all of your approved warrants and all of the supporting documents. | E143: 4 | F143: =IF(E143="NR/NA","",IF(E143>3,"G",IF(E143>2,"Y","R"))) -> G | G143: 4 | H143: 4 | I143: 4 | J143: 4
A144: 116 | B144: Does the capability exist to load a semi-truck? | C144: LOOK FOR: Fork Lift, Hand Fork QUESTIONS TO ASK: How do you load trucks? Are your lift operators trained to operate the equipment? | E144: 1 | F144: R | G144: 1 | H144: 1 | I144: 4 | J144: 1
A145: 117 | B145: Can the Allison online Supplier Quality system be accessed? | C145: LOOK FOR: On-line access QUESTIONS TO ASK: Show me how you access the SQN system. | E145: 2 | F145: R | G145: 2 | H145: 2 | I145: 4 | J145: 2
A146: 118 | B146: Can the warehouse re-package parts from sea containers to returnable containers if needed? | C146: LOOK FOR: "Clean" Area QUESTIONS TO ASK: How do you prevent damage/contamination during repackaging? How do you prevent mixing parts? | E146: 3 | F146: Y | G146: 3 | H146: 3 | I146: 4 | J146: 3
A147: 119 | B147: Can the warehouse print the appropriate shipping labels when repackaging is needed? | C147: LOOK FOR: Document or database detailing inventory control, Printer Shipping Label QUESTIONS TO ASK: What system is in place to control inventory and labeling? | E147: 4 | F147: G | G147: 4 | H147: 4 | I147: 4 | J147: 4
A148: 120 | B148: Can the warehouse prepare the appropriate shipping paperwork (packing slips, bills of lading, etc.) | C148: LOOK FOR: Document or database detailing inventory control, Printer Shipping Label QUESTIONS TO ASK: What system is in place to control inventory and labeling? | E148: 1 | F148: R | G148: 1 | H148: 1 | I148: 4 | J148: 1
B149: # Corrective Action Required = | C149: =IF(E149="NR/NA","NR/NA",COUNTIF(J132:J148,"<3")) -> 9 | D149: SCORE / POTENTIAL | E149: =IF(H149=85,"NR/NA",SUM(G132:G148)) -> 41 | F149: =I149 -> 68 | G149: =SUM(G132:G148) -> 41 | H149: =SUM(H132:H148) -> 41 | I149: 68 | J149: 41
C151: ELEMENT SCORING
B152: 0 | C152: 0 - Element is not in place and no evidence of plans to implement: Corrective Action Required
B153: 1 | C153: 1 - Element is not in place but a plan to implement is documented: Corrective Action Required
B154: 2 | C154: 2 - Element is in place but it is not being followed: Corrective Action Required.
B155: 3 | C155: 3 - YELLOW: Element is satisfactory, but continuous improvement should be applied.
B156: 4 | C156: 4 - GREEN: Element is in place and it is being followed
B157: nr/na | C157: NR/NA - Didn't Audit / Not Applicable
B158: Note: Enter appropriate score based on R Y G score criteria and hit enter. Correct color will appear in R/Y/G cell.
B160: Auditor Comments:

Sheet Summary
B1: =Audit!B4 -> A. TECHNICAL INFORMATION AVAILABILITY
B2: 1. ACTUAL DRAWING | C2: =Audit!E5 -> 1 | D2: 2. Sched. Agree. Revision Level | E2: =Audit!E6 -> 2 | F2: 3. Full PPAP Documentation | G2: =Audit!E7 -> 3
B3: 4. Technical Specifications | C3: =Audit!E8 -> 4
B5: Score | C5: =Audit!E9 -> 10 | D5: Potential | E5: =Audit!F9 -> 16 | F5: Percentage | G5: ='Cover Sheet'!G36 -> 0.625
B7: =Audit!B10 -> B. CHANGE CONTROL
B8: 5. Revision Levels Agree | C8: =Audit!E11 -> 1 | D8: 6. Change Mgmt System | E8: =Audit!E12 -> 2 | F8: 7. Sub Tier PPAP | G8: =Audit!E13 -> 3
B9: 8. Document Change Control | C9: =Audit!E14 -> 4
B11: Score | C11: =Audit!E17 -> 1 | D11: Potential | E11: =Audit!F15 -> 16 | F11: Percentage | G11: ='Cover Sheet'!G37 -> 0.625
B13: =Audit!B16 -> C. PROCESS FLOW DIAGRAM
B14: 9. PFD Available | C14: =Audit!E17 -> 1 | D14: 10. Workplace Match PFD | E14: =Audit!E18 -> 2 | F14: 11. PFD Receiving | G14: =Audit!E19 -> 3
B15: 12. PFD Rework | C15: =Audit!E20 -> 4 | D15: 13. PFD Gauging and Inspection | E15: =Audit!E21 -> 1 | F15: 14. PFD Shipping | G15: =Audit!E22 -> 2
B17: Score | C17: =Audit!E23 -> 13 | D17: Potential | E17: =Audit!F23 -> 24 | F17: Percentage | G17: ='Cover Sheet'!G38 -> 0.5416666667
B19: =Audit!B24 -> D. PFMEA / PCP
B20: 15. PFMEA Available | C20: =Audit!E25 -> 1 | D20: 16. Evidence PFMEA Up to Date | E20: =Audit!E26 -> 2 | F20: 17. PFMEA Acceptable | G20: =Audit!E27 -> 3
B21: 18. RPN's Consistent | C21: =Audit!E28 -> 4 | D21: 19. Continuous Improvement | E21: =Audit!E29 -> 1 | F21: 20. PCP Available | G21: =Audit!E30 -> 2
B22: 21. PCP Acceptable | C22: =Audit!E31 -> 3 | D22: 22. Controls on PFMEA and PCP | E22: =Audit!E32 -> 4 | F22: 23. Special Chars. On PCP | G22: =Audit!E33 -> 1
B23: 24. Inspection Frequencies | C23: =Audit!E34 -> 2 | D23: 25. Sample Size and Frequency | E23: =Audit!E35 -> 3
B25: Score | C25: =Audit!E36 -> 26 | D25: Potential | E25: =Audit!F36 -> 44 | F25: Percentage | G25: ='Cover Sheet'!G39 -> 0.5909090909
B27: =Audit!B37 -> E. STANDARDIZED OPERATIONS & TRAINING
B28: 26. Proper Operator Instructions | C28: =Audit!E38 -> 1 | D28: 27. Detailed Work Instructions | E28: =Audit!E39 -> 2 | F28: 28. Standardized Work Followed | G28: =Audit!E40 -> 3
B29: 29. Instructions Understood | C29: =Audit!E41 -> 4 | D29: 30. Operators Trained | E29: =Audit!E42 -> 1 | F29: 31. WIP for Final Product | G29: =Audit!E43 -> 2
B30: 32. Parts and Components Label | C30: =Audit!E44 -> 3
B32: Score | C32: =Audit!E45 -> 16 | D32: Potential | E32: =Audit!F45 -> 28 | F32: Percentage | G32: ='Cover Sheet'!G40 -> 0.5714285714
B34: =Audit!B46 -> F. GAGING
B35: 33. Tools and Gauges Identified | C35: =Audit!E47 -> 1 | D35: 34. Gauges Calibrated | E35: =Audit!E48 -> 2 | F35: 35. Periodic Gage MSA | G35: =Audit!E49 -> 3
B36: 36. Reaction to MSA Results | C36: =Audit!E50 -> 4 | D36: 37. Proper Operator Instructions | E36: =Audit!E51 -> 1 | F36: 38. Gaging Method Proper | G36: =Audit!E52 -> 2
B37: 39. Boundary Samples | C37: =Audit!E53 -> 3 | D37: 40. Error Proof Verification | E37: =Audit!E54 -> 4 | F37: 41. Master Parts Available | G37: =Audit!E55 -> 1
B39: Score | C39: =Audit!E56 -> 21 | D39: Potential | E39: =Audit!F56 -> 36 | F39: Percentage | G39: ='Cover Sheet'!G41 -> 0.5833333333
B41: =Audit!B57 -> G. PROCESS CONTROLS
B42: 42. Approved Material List | C42: =Audit!E58 -> 1 | D42: 43. Incoming Material Controls | E42: =Audit!E59 -> 2 | F42: 44. Parts have Traceability | G42: =Audit!E60 -> 3
B43: 45. SPC Data | C43: =Audit!E61 -> 4 | D43: 46. UCL & LCL | E43: =Audit!E62 -> 1 | F43: 47. Reasonable Control Limits | G43: =Audit!E63 -> 2
B44: 48. PCP Checks | C44: =Audit!E64 -> 3 | D44: 49. Deviation Actions | E44: =Audit!E65 -> 4 | F44: 50. Product Audits | G44: =Audit!E66 -> 1
B45: 51. Capability Studies | C45: =Audit!E67 -> 2 | D45: 52. Packaging and Handling | E45: =Audit!E68 -> 3
B47: Score | C47: =Audit!E69 -> 26 | D47: Potential | E47: =Audit!F69 -> 44 | F47: Percentage | G47: ='Cover Sheet'!G42 -> 0.5909090909
B49: =Audit!B70 -> H. MANAGEMENT SYSTEM
B50: 53. Safety Procedure | C50: =Audit!E71 -> 1 | D50: 54. Visitor Safety Protocol | E50: =Audit!E72 -> 2 | F50: 55. PM Program | G50: =Audit!E73 -> 3
B51: 56. Critical Machine Listing | C51: =Audit!E74 -> 4 | D51: 57. Downtime, Scrap, Prem. Fgt. | E51: =Audit!E75 -> 1 | F51: 58. Internal/External Prob. Rep. | G51: =Audit!E76 -> 2
B52: 59. Out of Control Conditions | C52: =Audit!E77 -> 3 | D52: 60. Action Plans Followed | E52: =Audit!E78 -> 4 | F52: 61. Implementation Resp | G52: =Audit!E79 -> 1
B53: 62. Problem Communication | C53: =Audit!E80 -> 2 | D53: 63. Information Across all Shifts | E53: =Audit!E81 -> 3 | F53: 64. Layered Audit System | G53: =Audit!E82 -> 4
B54: 65. Continuous Improvement | C54: =Audit!E83 -> 1
B56: Score | C56: =Audit!E86 -> 33 | D56: Potential | E56: =Audit!F86 -> 60 | F56: Percentage | G56: ='Cover Sheet'!G43 -> 0.55
B58: =Audit!B87 -> I. CONTAMINATION CONTROL
B59: 66. Contamination Procedures | C59: =Audit!E88 -> 1 | D59: 67. WIP Protection | E59: =Audit!E89 -> 2 | F59: 68. Adequate Dunnage | G59: =Audit!E90 -> 3
B60: 69. Washer PM | C60: =Audit!E91 -> 4 | D60: 70. Washer Parameters | E60: =Audit!E92 -> 1 | F60: 71. TIS-5750/5751 Performed | G60: =Audit!E93 -> 2
B61: 72. TIS-5750/5751 Meet Spec. | C61: =Audit!E94 -> 3 | D61: 73. TIS-5750/5751 Results Reviewed | E61: =Audit!E95 -> 4 | F61: 74. TIS-5750/5751 Result Actions | G61: =Audit!E96 -> 1
B63: Score | C63: =Audit!E97 -> 21 | D63: Potential | E63: =Audit!F97 -> 36 | F63: Percentage | G63: ='Cover Sheet'!G44 -> 0.5833333333
B65: =Audit!B98 -> J. LABELING
B66: 75. Latest Labeling Docs | C66: =Audit!E99 -> 1 | D66: 76. Bar Codes Legible | E66: =Audit!E100 -> 2 | F66: 77. GM Labeling Removed | G66: =Audit!E101 -> 3
B67: 78. Old Labels Removed | C67: =Audit!E102 -> 4 | D67: 79. Cert. Mat'l Labels | E67: =Audit!E103 -> 1 | F67: 80. Labeling Process | G67: =Audit!E104 -> 2
B68: 81. Shipping Address | C68: =Audit!E105 -> 3 | D68: 82. Correct Label Size/Place | E68: =Audit!E106 -> 4
B70: Score | C70: =Audit!E107 -> 20 | D70: Potential | E70: =Audit!F107 -> 32 | F70: Percentage | G70: ='Cover Sheet'!G45 -> 0.625
B72: =Audit!B108 -> K. LEAK TESTING
B73: 83. Testing Matches Print | C73: =Audit!E109 -> 1 | D73: 84. Parameters Meet Spec | E73: =Audit!E110 -> 2 | F73: 85. Correct Areas Tested | G73: =Audit!E111 -> 3
B74: 86. Part ID After Test | C74: =Audit!E112 -> 4 | D74: 87. Containment of Failed Parts | E74: =Audit!E113 -> 1 | F74: 88. Leak Test Master Samples | G74: =Audit!E114 -> 2
B75: 89. Leak Tester Mastered | C75: =Audit!E115 -> 3
B77: Score | C77: =Audit!E116 -> 16 | D77: Potential | E77: =Audit!F116 -> 28 | F77: Percentage | G77: ='Cover Sheet'!G46 -> 0.5714285714
B79: =Audit!B117 -> L. HEAT TREATING
B80: 90. Allison Specs | C80: =Audit!E118 -> 1 | D80: 91. CQI-9 Audit | E80: =Audit!E119 -> 2 | F80: 92. Temp Uniformity Survey | G80: =Audit!E120 -> 3
B81: 93. Handling Suspect Material | C81: =Audit!E121 -> 4 | D81: 94. Allison Lab Evaluation | E81: =Audit!E122 -> 1 | F81: 95. Inspection Requirements | G81: =Audit!E123 -> 2
B82: 96. Hardness Tester Condition | C82: =Audit!E124 -> 3 | D82: 97. Hardness Tester Certified | E82: =Audit!E125 -> 4 | F82: 98. Process Documentation | G82: =Audit!E126 -> 1
B83: 99. Instrument Calibration | C83: =Audit!E127 -> 2 | D83: 100. Training | E83: =Audit!E128 -> 3 | F83: 101. Sub-Tier HT Approved | G83: =Audit!E129 -> 4
B85: Score | C85: =Audit!E130 -> 30 | D85: Potential | E85: =Audit!F130 -> 48 | F85: Percentage | G85: ='Cover Sheet'!G47 -> 0.625
B87: =Audit!B131 -> M. DISTRIBUTOR/WAREHOUSE
B88: 102. Current Drawing | C88: =Audit!E132 -> 1 | D88: 103. Inventory Movement | E88: =Audit!E133 -> 2 | F88: 104. FIFO System | G88: =Audit!E134 -> 3
B89: 105. Secure Facility | C89: =Audit!E135 -> 4 | D89: 106. Quality Manual | E89: =Audit!E136 -> 1 | F89: 107. Sorting Procedure | G89: =Audit!E137 -> 2
B90: 108. Non-Conforming Procedure | C90: =Audit!E138 -> 3 | D90: 109. PCP/Data Procedure | E90: =Audit!E139 -> 4 | F90: 110. Problem Notification | G90: =Audit!E140 -> 1
B91: 111. Building Condition | C91: =Audit!E141 -> 2 | D91: 112. Min/Max Inventory Levels | E91: =Audit!E142 -> 3 | F91: 113. PPAP Documentation | G91: =Audit!E143 -> 4
B92: 114. Truck Loading | C92: =Audit!E144 -> 1 | D92: 115. SQN System | E92: =Audit!E145 -> 2 | F92: 116. Repackage Parts | G92: =Audit!E146 -> 3
B93: 117. Shipping Labels | C93: =Audit!E147 -> 4 | D93: 118. Shipping Paperwork | E93: =Audit!E148 -> 1
B95: Score | C95: =Audit!E149 -> 41 | D95: Potential | E95: =Audit!F149 -> 68 | F95: Percentage | G95: ='Cover Sheet'!G48 -> 0.6029411765
B97: ='Tooling Audit Form Sec1'!B5 -> N. TOOLING AUDIT SECTION 1
B98: M1. ATI Tooling Maintenance | C98: ='Tooling Audit Form Sec1'!E6 -> 1 | D98: M2. Tooling Identification | E98: ='Tooling Audit Form Sec1'!E7 -> 2 | F98: M3. Tool Life Tracking | G98: ='Tooling Audit Form Sec1'!E8 -> 3
B99: M4. Repair/Replace Notification | C99: ='Tooling Audit Form Sec1'!E9 -> 4
B101: Score | C101: ='Tooling Audit Form Sec1'!E10 -> 10 | D101: Potential | E101: ='Tooling Audit Form Sec1'!F10 -> 16 | F101: Percentage | G101: ='Cover Sheet'!G49 -> 0.625
G103: Score | I103: Potential
A104: ='Cover Sheet'!H36 -> R | B104: ='Cover Sheet'!G36 -> 0.625 | C104: =B1 -> A. TECHNICAL INFORMATION AVAILABILITY | G104: ='Cover Sheet'!F36 -> 10 | I104: ='Cover Sheet'!E36 -> 16
A105: ='Cover Sheet'!H37 -> R | B105: ='Cover Sheet'!G37 -> 0.625 | C105: =B2 -> 1. ACTUAL DRAWING | G105: ='Cover Sheet'!F37 -> 10 | I105: ='Cover Sheet'!E37 -> 16
A106: ='Cover Sheet'!H38 -> R | B106: ='Cover Sheet'!G38 -> 0.5416666667 | C106: =B7 -> B. CHANGE CONTROL | G106: ='Cover Sheet'!F38 -> 13 | I106: ='Cover Sheet'!E38 -> 24
A107: ='Cover Sheet'!H39 -> R | B107: ='Cover Sheet'!G39 -> 0.5909090909 | C107: =B19 -> D. PFMEA / PCP | G107: ='Cover Sheet'!F39 -> 26 | I107: ='Cover Sheet'!E39 -> 44
A108: ='Cover Sheet'!H40 -> R | B108: ='Cover Sheet'!G40 -> 0.5714285714 | C108: =B27 -> E. STANDARDIZED OPERATIONS & TRAINING | G108: ='Cover Sheet'!F40 -> 16 | I108: ='Cover Sheet'!E40 -> 28
A109: ='Cover Sheet'!H41 -> R | B109: ='Cover Sheet'!G41 -> 0.5833333333 | C109: =B34 -> F. GAGING | G109: ='Cover Sheet'!F41 -> 21 | I109: ='Cover Sheet'!E41 -> 36
A110: ='Cover Sheet'!H42 -> R | B110: ='Cover Sheet'!G42 -> 0.5909090909 | C110: =B41 -> G. PROCESS CONTROLS | G110: ='Cover Sheet'!F42 -> 26 | I110: ='Cover Sheet'!E42 -> 44
A111: ='Cover Sheet'!H43 -> R | B111: ='Cover Sheet'!G43 -> 0.55 | C111: =B49 -> H. MANAGEMENT SYSTEM | G111: ='Cover Sheet'!F43 -> 33 | I111: ='Cover Sheet'!E43 -> 60
A112: ='Cover Sheet'!H44 -> R | B112: ='Cover Sheet'!G44 -> 0.5833333333 | C112: =B58 -> I. CONTAMINATION CONTROL | G112: ='Cover Sheet'!F44 -> 21 | I112: ='Cover Sheet'!E44 -> 36
A113: ='Cover Sheet'!H45 -> R | B113: ='Cover Sheet'!G45 -> 0.625 | C113: I. LABELING | G113: ='Cover Sheet'!F45 -> 20 | I113: ='Cover Sheet'!E45 -> 32
A114: ='Cover Sheet'!H46 -> R | B114: ='Cover Sheet'!G46 -> 0.5714285714 | C114: =B72 -> K. LEAK TESTING | G114: ='Cover Sheet'!F46 -> 16 | I114: ='Cover Sheet'!E46 -> 28
A115: ='Cover Sheet'!H47 -> R | B115: ='Cover Sheet'!G47 -> 0.625 | C115: =B79 -> L. HEAT TREATING | G115: ='Cover Sheet'!F47 -> 30 | I115: ='Cover Sheet'!E47 -> 48
A116: ='Cover Sheet'!H48 -> R | B116: ='Cover Sheet'!G48 -> 0.6029411765 | C116: =B87 -> M. DISTRIBUTOR/WAREHOUSE | G116: ='Cover Sheet'!F48 -> 41 | I116: ='Cover Sheet'!E48 -> 68
A117: ='Cover Sheet'!H49 -> R | B117: ='Cover Sheet'!G49 -> 0.625 | C117: =B97 -> N. TOOLING AUDIT SECTION 1 | G117: ='Cover Sheet'!F49 -> 10 | I117: ='Cover Sheet'!E49 -> 16
A118: ='Cover Sheet'!G51 -> R | B118: ='Cover Sheet'!G50 -> 0.5907258065 | C118: OVERALL | G118: ='Cover Sheet'!F50 -> 293 | I118: ='Cover Sheet'!E50 -> 496
A120: ELEMENT SCORING
A121: =IF(MIN(E109:E119)=3,"G", IF(MIN(E109:E119)=2, "Y","R")) -> R | B121: 0 - Element is not in place and no evidence of plans to implement: Corrective Action Required
A122: =IF(MIN(E110:E120)=3,"G", IF(MIN(E110:E120)=2, "Y","R")) -> R | B122: 1 - Element is not in place but a plan to implement is documented: Corrective Action Required
A123: =IF(MIN(E112:E121)=3,"G", IF(MIN(E112:E121)=2, "Y","R")) -> R | B123: 2 - Element is in place but it is not being followed: Corrective Action Required.
A124: Y | B124: 3 - YELLOW: Element is satisfactory, but continuous improvement should be applied.
A125: G | B125: 4 - GREEN: Element is in place and it is being followed
A126: NR/NA | B126: NR/NA - Didn't Audit / Not Applicable
B127: Note: Status and Code entered automatically from audit sheet..

Sheet Tooling Audit Form Sec1
B1: Allison Transmission, Inc.
B2: Supplier Quality Tooling Audit Form Section 1
B3: This audit form is intended for use in review of both Allison Transmission, Inc. (ATI) owned tooling AND Government owned tooling related to contracts between the Government and ATI located at ATI's suppliers facility(ies) and/or sub-tiered suppliers. The word "tool" refers to any piece of ATI or government owned equipment necessary to manufacturing and/or qualify material for supply to ATI (ie. tooling, fixturing, gaging, etc).
B5: N. TOOLING AUDIT SECTION 1 | C5: (If not required, leave score at "NR")
A6: M1 | B6: Is there a process in place to ensure ATI owned tooling is properly maintained? | C6: LOOK FOR: PM plan, reaction plan, tool room and tool storage conditions and procedures QUESTIONS TO ASK: What is your method for maintaining customer owned tooling? How do you determine how long run tools during each production run? How are tools stored when not being used for production? NOTE: This applies to government owned tooling as well. | E6: 1 | F6: =IF(E6="NR/NA","",IF(E6>3,"G",IF(E6>2,"Y","R"))) -> R | G6: =IF(E6="NR/NA",0,E6) -> 1 | H6: =IF(E6="NR/NA",5,E6) -> 1 | I6: =IF(E6="NR/NA",0,4) -> 4 | J6: =IF(E6="NR/NA",5,E6) -> 1
A7: M2 | B7: Have ATI owned tools been permanently marked as prescribed in the original tooling P.O.? | C7: LOOK FOR: A permanent marking on the tool identifying as ATI property. If tool has multiple sections, cavities, or subcomponents, all must be permanently identified as ATI property. NOTE: Governement owned tooling should be permanently identified in accordance with current Federal Acquisition Regulations (FAR) 45.506 | E7: 2 | F7: R | G7: 2 | H7: 2 | I7: 4 | J7: 2
A8: M3 | B8: Is there a process for tracking tool usage, cycle count, estimated tool life remaining, and current condition? | C8: LOOK FOR: Production database, tool life tracking method, tooling responsible engineers QUESTIONS TO ASK: Do you have a method for tracking total cycles/shots/hits/strokes? Does this include a delineated amount due to scrap? Do you have a method for tracking how often and for how long a tool is run to support production? How was the initial estimated tool life calculated? Is this number still appropriate? Do you know the current remaining tool life? Is there an in process and last article review of tooling condition? | E8: 3 | F8: Y | G8: 3 | H8: 3 | I8: 4 | J8: 3
A9: M4 | B9: Is there a process for timely notification to ATI in the event major tooling maintenance or replacement is necessary? | C9: LOOK FOR: Familiarity with ATI tool replacement and tooling $ guidelines QUESTIONS TO ASK: How do you determine when a tool needs replaced? How much lead time do you provide customers with when tooling replacement is necessary? Do you understand the typical lead times to receiving payment from ATI for tooling maintenance and replacement? | E9: 4 | F9: G | G9: 4 | H9: 4 | I9: 4 | J9: 4
B10: # Corrective Action Required = | C10: =IF(E10="NR/NA","NR/NA",COUNTIF(J6:J9,"<3")) -> 2 | D10: SCORE / POTENTIAL | E10: =IF(H10=20,"NR/NA",SUM(G6:G9)) -> 10 | F10: =I10 -> 16 | G10: =SUM(G6:G9) -> 10 | H10: =SUM(H6:H9) -> 10 | I10: =SUM(I6:I9) -> 16 | J10: =SUM(J6:J9) -> 10

Sheet Tooling Audit Form Sec2
A1: Allison Transmission, Inc.
A2: Supplier Quality Tooling Audit Form Section 2
A3: This audit form is intended for use in review of both Allison Transmission, Inc. (ATI) owned tooling AND Government owned tooling related to contracts between the Government and ATI located at ATI's suppliers facility(ies) and/or sub-tiered suppliers. The word "tool" refers to both tooling and gaging equipment. | S3: Good
S4: Poor
A5: Section 2 Guidelines and Instructions: | J5: Tooling Condition Descriptions: | S5: Worn Out
A6: 1 - | B6: The SQE is to inform the ATI Purchasing Capital and Tooling Management group of the vendor being visited so that they may generate the appropriate list. This list will populate the cells under the gray header. | J6: Good | K6: The tool is fully functional and in good condition. (IE: Fixtures must hold part sound and secure. Gages must be certified annually (minimum). Specific Cutting Tools must be cutting the dimension it's designed for. Casting tools dimensionally correct with very minimal heat check tracks. Dies have minimal 'break burr's and cutting sections sharpened regularly. )
A8: 2 - | B8: At a minimum, cells highlighted in red must be completed for each tool reviewed.
A9: 3 - | B9: If the tooling is not located at the supplier shown in the "Current Vendor" cell, then the information requested in the cells under "Actual, Physical Tool Location" must be provided.
J10: Poor | K10: The tool is showing some excessive wear. (IE: Fixtures - part moving around while clamped, Gages - difficult to certify, Specific Cutting Tools - not able to cut the dimension its designed for. Dies - excessive break burr, not 'capable' to repeat forms.)
A11: 4 - | B11: If the condition of the tool is noted as anything other than "Good", elaboration is required in the Additional Comments cell.
A13: 5 - | B13: If pictures of the tooling are attached, note this in the Additional Comments section. | J13: Worn Out | K13: Tool incapable of running a dimensional correct part., >20% scrap, etc
A15: Current Vendor | C15: Part Nbr | D15: PO Nbr | E15: Asset # | F15: Description of Tool | G15: Acqd Date | H15: Line Item | I15: # of tools | J15: Condition | K15: Date Last Used | L15: Remaining Useful life | M15: Actual, Physical Tool Location (If not at current vendor listed) | R15: Additional Comments
A16: Code | B16: Name | M16: Company | N16: Street | O16: City | P16: State | Q16: Zip | S16: =COUNTA(A17,J17) -> 0
S17: =IF(J17="Good",1,IF(J17="",1,IF(R17="",2,1))) -> 1
S18: =IF(J18="Good",1,IF(J18="",1,IF(R18="",2,1))) -> 1
S19: 1
S20: 1
S21: 1
S22: 1
S23: 1
S24: 1
S25: 1
S26: 1
S27: 1
S28: 1
S29: 1
S30: 1
S31: 1
S32: 1
S33: 1
A35: COMMENTS:

Sheet Dock Audit
B1: Allison Transmission | G1: =COUNTA(B6)+COUNTA(C56) -> 0 | H1: ='Cover Sheet'!C22 -> 0
B2: Supplier Quality Product Audit Form | H2: Other (specify in Auditor Comments)
B3: Single measurement
A4: Supplier: | B4: ='Cover Sheet'!C7 -> 0 | E4: Vendor Code: | F4: ='Cover Sheet'!C9 -> 0
E5: Date: | F5: ='Cover Sheet'!I19 -> 00:00:00
A6: Part Audited: | E6: SQE: | F6: ='Cover Sheet'!C17 -> 0
A8: Dimension
A9: Upper Spec
A10: Lower Spec
B11: 1 | C11: 2 | D11: 3 | E11: 4 | F11: 5
A12: 1
A13: 2
A14: 3
A15: 4
A16: 5
A17: 6
A18: 7
A19: 8
A20: 9
A21: 10
A22: 11
A23: 12
A24: 13
A25: 14
A26: 15
A27: 16
A28: 17
A29: 18
A30: 19
A31: 20
A32: 21
A33: 22
A34: 23
A35: 24
A36: 25
A37: 26
A38: 27
A39: 28
A40: 29
A41: 30
A42: Average | B42: =IF(B9="","",AVERAGE(B12:B41)) ->  | C42: =IF(C9="","",AVERAGE(C12:C41)) ->  | D42: =IF(D9="","",AVERAGE(D12:D41)) ->  | E42: =IF(E9="","",AVERAGE(E12:E41)) ->  | F42: =IF(F9="","",AVERAGE(F12:F41)) -> 
A43: Max reading | B43: =IF(B9="","",MAX(B12:B41)) ->  | C43: =IF(C9="","",MAX(C12:C41)) ->  | D43: =IF(D9="","",MAX(D12:D41)) ->  | E43: =IF(E9="","",MAX(E12:E41)) ->  | F43: =IF(F9="","",MAX(F12:F41)) -> 
A44: Min reading | B44: =IF(B9="","",MIN(B12:B41)) ->  | C44: =IF(C9="","",MIN(C12:C41)) ->  | D44: =IF(D9="","",MIN(D12:D41)) ->  | E44: =IF(E9="","",MIN(E12:E41)) ->  | F44: =IF(F9="","",MIN(F12:F41)) -> 
A45: Range | B45: =IF(B9="","",(B43-B44)) ->  | C45: =IF(C9="","",(C43-C44)) ->  | D45: =IF(D9="","",(D43-D44)) ->  | E45: =IF(E9="","",(E43-E44)) ->  | F45: =IF(F9="","",(F43-F44)) -> 
A46: Standard Dev (σ) | B46: =IF(B9="","",STDEV(B12:B41)) ->  | C46: =IF(C9="","",STDEV(C12:C41)) ->  | D46: =IF(D9="","",STDEV(D12:D41)) ->  | E46: =IF(E9="","",STDEV(E12:E41)) ->  | F46: =IF(F9="","",STDEV(F12:F41)) -> 
A47: 3σ | B47: =IF(B9="","",(B46*3)) ->  | C47: =IF(C9="","",(C46*3)) ->  | D47: =IF(D9="","",(D46*3)) ->  | E47: =IF(E9="","",(E46*3)) ->  | F47: =IF(F9="","",(F46*3)) -> 
A48: 6σ | B48: =IF(B10="","",(B46*6)) ->  | C48: =IF(C10="","",(C46*6)) ->  | D48: =IF(D10="","",(D46*6)) ->  | E48: =IF(E10="","",(E46*6)) ->  | F48: =IF(F10="","",(F46*6)) -> 
A49: Pp | B49: =IF(B9="","",((B9-B10)/B48)) ->  | C49: =IF(C9="","",((C9-C10)/C48)) ->  | D49: =IF(D9="","",((D9-D10)/D48)) ->  | E49: =IF(E9="","",((E9-E10)/E48)) ->  | F49: =IF(F9="","",((F9-F10)/F48)) -> 
A50: Ppu | B50: =IF(B9="","",((B9-B42)/B47)) ->  | C50: =IF(C9="","",((C9-C42)/C47)) ->  | D50: =IF(D9="","",((D9-D42)/D47)) ->  | E50: =IF(E9="","",((E9-E42)/E47)) ->  | F50: =IF(F9="","",((F9-F42)/F47)) -> 
A51: Ppl | B51: =IF(B9="","",((B42-B10)/B47)) ->  | C51: =IF(C9="","",((C42-C10)/C47)) ->  | D51: =IF(D9="","",((D42-D10)/D47)) ->  | E51: =IF(E9="","",((E42-E10)/E47)) ->  | F51: =IF(F9="","",((F42-F10)/F47)) -> 
A52: Ppk | B52: =IF(B9="","",MIN(B50:B51)) ->  | C52: =IF(C9="","",MIN(C50:C51)) ->  | D52: =IF(D9="","",MIN(D50:D51)) ->  | E52: =IF(E9="","",MIN(E50:E51)) ->  | F52: =IF(F9="","",MIN(F50:F51)) -> 
F53: Yes
A54: For capability, a minimum of a thirty (30) piece sample should be taken | F54: No
B56: All parameters within spec?
B58: Allison SQE Signature | E58: Date
B60: Supplier Signature: | E60: Date:

Sheet SQE Action Plan Form
A1: Supplier | C1: ='Cover Sheet'!C7 -> 0 | D1: Start Date: | I1: SQE | O1: ='Cover Sheet'!C17 -> 0
A2: Location | C2: ='Cover Sheet'!I9 -> 0 | D2: Rev. Date: | I2: SQE Phone | O2: ='Cover Sheet'!I17 -> 0
A3: Commodity | D3: Grad Date: | I3: Manager:
A4: Prepared by: | D4: Program: | E4: ='Cover Sheet'!I24 -> 00:00:00 | I4: Group:
I5: Creativity Team:
A7: "Color Codes"
B8: G | C8: Green - Task Completed on Time
B9: Y | C9: Yellow - Task May Be Late
B10: R | C10: Red - Task is Late
B11: W | C11: White - Task Re-Timed, No Status
B12: B | C12: Blue - Task Status is Incorrect / Not Updated
C13: On Track (Bold Box/No Color)
E14: TOTAL | G14: TOTAL | I14: STATUS
E15: =COUNTA(E18:E146) -> 0 | G15: =COUNTA(G18:G146) -> 0
A16: ITEM | C16: ACTION ITEM | D16: ACTION LEADER | E16: DATE OPENED | F16: TARGET CLOSE DATE | G16: ACTUAL CLOSE DATE | H16: LAST UPDATE | I16: STATUS HISTORY | O16: COUNTER MEASURES
I17: 1 | J17: 2 | K17: 3 | L17: 4 | M17: 5 | N17: 6
A18: 1
A19: 2
A20: 3
A21: 4
A22: 5
A23: 6
A24: 7
A25: 8
A26: 9
A27: 10
A28: 11
A29: 12
A30: 13
A31: 14
A32: 15
A33: 16
A34: 17
A35: 18
A36: 19
A37: 20
A38: 21
A39: 22
A40: 23
A41: 24
A42: 25
A43: 26
A44: 27
A45: 28
A46: 29

Sheet Revision History
A1: Date | B1: Description
A2: 2009-03-31 | B2: Released
A3: 2010-04-30 | B3: Failure of audit and F/U required for any red elements
A4: 2012-01-19 | B4: Added new section (I.) with 8 Labeling audits. Added Vendor Number field on Cover Sheet. Reworded criteria to Section D, #25.
A5: 2013-07-18 | B5: Integrated QSB and updated other items with Global input
A6: 2013-12-02 | B6: Coding/Formatting corrections for score calculations
A7: 2014-04-01 | B7: Additional formatting updates. Removed DUNS # field. Updated ATI logo on cover sheet to comply with new corporate branding guidelines. Added TC10 and H3000 as product line options
A8: 2014-04-30 | B8: Added ATI tooling audit (two tabs "Tooling Audit Form Sec1" and "Tooling Audit Form Sec2")
A9: 2015-08-20 | B9: Significant rewrite. Several questions added, deleted and reworded. As a result questions have been renumbered 1) On cover sheet added summary for new "change control" section 2) Reworded Q1 to reference scheduling agreement instead of purchase order 3) Added Q2 and 3 4) Q4 - added detail to ensure supplier technical specifications match what level is on the supplier portal 5) Deleted previous Q3 - If the supplier is design responsible, has the DFMEA been used to develop the PFMEA? 6) Added section on change control 7) Reworded Q10 8) Deleted previous Q8 - Does the Process Flow Diagram include scrap? 9) Reworded Q17 10) Reworded Q21 11) Deleted previous Q18 - Does the PCP show consistency? 12) Deleted previous Q20 - Are process controls in place in the PCP to address the higher PFMEA Risk Priority Numbers? 13) Q23 and 24 - replaced "PQCs or legacy designations" with "special characteristics" 14) Deleted previous Q26 - Is there Standardized Work? 15) Deleted previous Q34 - Are tools and gauges requiring outside certification current?
A10: 2015-08-20 | B10: 16) Reworded Q35 - used to ask if gage R&R was less than 10%. Reworded to ensure suppliers are periodically performing MSAs and families of gages 17) Added Q36 16) Reworded Q38
B11: 17) Added Q40
B12: 18) Q41 - added wording to ensure error proofing masters are identified properly
B13: 19) Deleted previous Q50 - Does a Master list of all devices that prevent/detect the manufacture or assembly of nonconforming product exist?
B14: 20) Added Q53,54, and 56
B15: 21) Deleted previous Q58- Does the support system respond to the operator?
B16: 22) Deleted previous Q67 - Is washer verification performed?
B17: 23) Q88 - added wording to ensure masters are adequately protected
B18: 24) Added Q101
A19: 2016-03-15 | B19: 1) Items 23, 24, 51 - replaced PQC, KPC reference with "special characteristics
B20: 2) Modified worksheet protection password to standard purchasing Excel password
B21: 3) On cover sheet, modified section on type of audit to provide more clarity.
A22: 2018-02-14 | B22: 1) Added questions 66 and 67 to address contingency plans and cascade of applicable requirements and characteristics to supply chain. 2) Adjusted page breaks to accommodate new questions. 3) Corrected spelling on Audit tab. 4) increased row heights on audit so all text is visible
A23: 2023-02-24 | B23: 1) Removed Names 2) Updated formatting
A24: 2023-10-24 | B24: 1) Cover Sheet: Added "Auditor 1" and "Auditor 2" 2) Cover Sheet: Updated dropdown list for PLT 3) Cover Sheet: Added additional signature line 3) Updated revision level

Sheet Sheet1 (hidden)
A1: 0
A2: 1 | B2: PASSED
A3: 2 | B3: FOLLOW UP AUDIT
A4: 3 | B4: QSB WORKSHOP REQUIRED
A5: 4
A6: NR
